Publisher Label,Publisher URI,"Supplier ID","Supplier","Invoice No.","Amount £","Purpose","Transaction Number","Payment Date","Organisational Unit","Cost Centre(T)","Internal Category Number"
"Wolverhampton City Council","http://opendatacommunities.org/id/metropolitan-district-council/wolverhampton","704044","Greenhous Commercials Limited","13717109","113.00","MOT & HGV Tests","190506321","19/09/2018","Fleet Services","Fleet Management","R3005"
"Wolverhampton City Council","http://opendatacommunities.org/id/metropolitan-district-council/wolverhampton","704044","Greenhous Commercials Limited","13717109","35.00","MOT & HGV Tests","190506321","19/09/2018","Fleet Services","Fleet Management","R3005"
"Wolverhampton City Council","http://opendatacommunities.org/id/metropolitan-district-council/wolverhampton","704044","Greenhous Commercials Limited","13717107","91.00","MOT & HGV Tests","190506319","19/09/2018","Fleet Services","Fleet Management","R3005"
"Wolverhampton City Council","http://opendatacommunities.org/id/metropolitan-district-council/wolverhampton","704044","Greenhous Commercials Limited","13717107","35.00","MOT & HGV Tests","190506319","19/09/2018","Fleet Services","Fleet Management","R3005"
"Wolverhampton City Council","http://opendatacommunities.org/id/metropolitan-district-council/wolverhampton","704044","Greenhous Commercials Limited","13115022","8.12","Equipment - Purchase","190504290","12/09/2018","Fleet Services","Fleet Management","R4000"
"Wolverhampton City Council","http://opendatacommunities.org/id/metropolitan-district-council/wolverhampton","704044","Greenhous Commercials Limited","13717633","15.00","Services - Professional Fees","190510168","26/09/2018","Fleet Services","Fleet Management","R4400"
"Wolverhampton City Council","http://opendatacommunities.org/id/metropolitan-district-council/wolverhampton","704044","Greenhous Commercials Limited","13717633","19.45","Services - Professional Fees","190510168","26/09/2018","Fleet Services","Fleet Management","R4400"
"Wolverhampton City Council","http://opendatacommunities.org/id/metropolitan-district-council/wolverhampton","704044","Greenhous Commercials Limited","13717633","65.00","Services - Professional Fees","190510168","26/09/2018","Fleet Services","Fleet Management","R4400"
"Wolverhampton City Council","http://opendatacommunities.org/id/metropolitan-district-council/wolverhampton","704044","Greenhous Commercials Limited","13717633","54.00","Services - Professional Fees","190510168","26/09/2018","Fleet Services","Fleet Management","R4400"
"Wolverhampton City Council","http://opendatacommunities.org/id/metropolitan-district-council/wolverhampton","704044","Greenhous Commercials Limited","13116264","56.60","Equipment - Purchase","190505023","14/09/2018","Fleet Services","Fleet Management","R4000"
"Wolverhampton City Council","http://opendatacommunities.org/id/metropolitan-district-council/wolverhampton","704044","Greenhous Commercials Limited","1304702","-85.00","Equipment - Purchase","190501381","05/09/2018","Fleet Services","Fleet Management","R4000"
"Wolverhampton City Council","http://opendatacommunities.org/id/metropolitan-district-council/wolverhampton","704044","Greenhous Commercials Limited","13111719","11.39","Equipment - Purchase","190501382","05/09/2018","Fleet Services","Fleet Management","R4000"
"Wolverhampton City Council","http://opendatacommunities.org/id/metropolitan-district-council/wolverhampton","704044","Greenhous Commercials Limited","13716746","60.00","Services - Professional Fees","190502320","05/09/2018","Fleet Services","Fleet Management","R4400"
"Wolverhampton City Council","http://opendatacommunities.org/id/metropolitan-district-council/wolverhampton","704044","Greenhous Commercials Limited","13716746","15.00","Services - Professional Fees","190502320","05/09/2018","Fleet Services","Fleet Management","R4400"
"Wolverhampton City Council","http://opendatacommunities.org/id/metropolitan-district-council/wolverhampton","704044","Greenhous Commercials Limited","13105268","162.00","Equipment - Purchase","190510486","26/09/2018","Fleet Services","Fleet Management","R4000"
"Wolverhampton City Council","http://opendatacommunities.org/id/metropolitan-district-council/wolverhampton","704044","Greenhous Commercials Limited","13113494","26.92","Equipment - Purchase","190504287","12/09/2018","Fleet Services","Fleet Management","R4000"
"Wolverhampton City Council","http://opendatacommunities.org/id/metropolitan-district-council/wolverhampton","704044","Greenhous Commercials Limited","13115834","165.00","Equipment - Purchase","190508086","19/09/2018","Fleet Services","Fleet Management","R4000"
"Wolverhampton City Council","http://opendatacommunities.org/id/metropolitan-district-council/wolverhampton","704044","Greenhous Commercials Limited","13717531","15.00","Services - Professional Fees","190508088","19/09/2018","Fleet Services","Fleet Management","R4400"
"Wolverhampton City Council","http://opendatacommunities.org/id/metropolitan-district-council/wolverhampton","704044","Greenhous Commercials Limited","13717531","14.00","Services - Professional Fees","190508088","19/09/2018","Fleet Services","Fleet Management","R4400"
"Wolverhampton City Council","http://opendatacommunities.org/id/metropolitan-district-council/wolverhampton","704044","Greenhous Commercials Limited","13717531","54.00","Services - Professional Fees","190508088","19/09/2018","Fleet Services","Fleet Management","R4400"
"Wolverhampton City Council","http://opendatacommunities.org/id/metropolitan-district-council/wolverhampton","704044","Greenhous Commercials Limited","13717531","45.00","Services - Professional Fees","190508088","19/09/2018","Fleet Services","Fleet Management","R4400"
"Wolverhampton City Council","http://opendatacommunities.org/id/metropolitan-district-council/wolverhampton","704044","Greenhous Commercials Limited","13717108","35.00","MOT & HGV Tests","190506320","19/09/2018","Fleet Services","Fleet Management","R3005"
"Wolverhampton City Council","http://opendatacommunities.org/id/metropolitan-district-council/wolverhampton","704044","Greenhous Commercials Limited","13717108","91.00","MOT & HGV Tests","190506320","19/09/2018","Fleet Services","Fleet Management","R3005"
"Wolverhampton City Council","http://opendatacommunities.org/id/metropolitan-district-council/wolverhampton","704044","Greenhous Commercials Limited","13717411","15.00","Services - Professional Fees","190504292","12/09/2018","Fleet Services","Fleet Management","R4400"
"Wolverhampton City Council","http://opendatacommunities.org/id/metropolitan-district-council/wolverhampton","704044","Greenhous Commercials Limited","13717411","54.00","Services - Professional Fees","190504292","12/09/2018","Fleet Services","Fleet Management","R4400"
"Wolverhampton City Council","http://opendatacommunities.org/id/metropolitan-district-council/wolverhampton","704044","Greenhous Commercials Limited","13717411","45.00","Services - Professional Fees","190504292","12/09/2018","Fleet Services","Fleet Management","R4400"
"Wolverhampton City Council","http://opendatacommunities.org/id/metropolitan-district-council/wolverhampton","704044","Greenhous Commercials Limited","13107041","85.10","Equipment - Purchase","190510488","26/09/2018","Fleet Services","Fleet Management","R4000"
"Wolverhampton City Council","http://opendatacommunities.org/id/metropolitan-district-council/wolverhampton","704044","Greenhous Commercials Limited","13115459","59.00","Equipment - Purchase","190505021","14/09/2018","Fleet Services","Fleet Management","R4000"
"Wolverhampton City Council","http://opendatacommunities.org/id/metropolitan-district-council/wolverhampton","704044","Greenhous Commercials Limited","13111903","170.00","Equipment - Purchase","190501383","05/09/2018","Fleet Services","Fleet Management","R4000"
"Wolverhampton City Council","http://opendatacommunities.org/id/metropolitan-district-council/wolverhampton","704044","Greenhous Commercials Limited","13716747","54.00","Services - Professional Fees","190501386","05/09/2018","Fleet Services","Fleet Management","R4400"
"Wolverhampton City Council","http://opendatacommunities.org/id/metropolitan-district-council/wolverhampton","704044","Greenhous Commercials Limited","13716747","15.00","Services - Professional Fees","190501386","05/09/2018","Fleet Services","Fleet Management","R4400"
"Wolverhampton City Council","http://opendatacommunities.org/id/metropolitan-district-council/wolverhampton","704044","Greenhous Commercials Limited","13716747","45.00","Services - Professional Fees","190501386","05/09/2018","Fleet Services","Fleet Management","R4400"
"Wolverhampton City Council","http://opendatacommunities.org/id/metropolitan-district-council/wolverhampton","704044","Greenhous Commercials Limited","13716747","15.28","Services - Professional Fees","190501386","05/09/2018","Fleet Services","Fleet Management","R4400"
"Wolverhampton City Council","http://opendatacommunities.org/id/metropolitan-district-council/wolverhampton","704044","Greenhous Commercials Limited","13112239","82.50","Equipment - Purchase","190501384","05/09/2018","Fleet Services","Fleet Management","R4000"
"Wolverhampton City Council","http://opendatacommunities.org/id/metropolitan-district-council/wolverhampton","704061","Guest Motors Limited","13044228","11.09","Equipment - Purchase","190505019","14/09/2018","Fleet Services","Fleet Management","R4000"
"Wolverhampton City Council","http://opendatacommunities.org/id/metropolitan-district-council/wolverhampton","704061","Guest Motors Limited","13044352","75.00","Equipment - Purchase","190508084","19/09/2018","Fleet Services","Fleet Management","R4000"
"Wolverhampton City Council","http://opendatacommunities.org/id/metropolitan-district-council/wolverhampton","704061","Guest Motors Limited","13044352","75.00","Equipment - Purchase","190508084","19/09/2018","Fleet Services","Fleet Management","R4000"
"Wolverhampton City Council","http://opendatacommunities.org/id/metropolitan-district-council/wolverhampton","704061","Guest Motors Limited","13044192","94.29","Equipment - Purchase","190505018","14/09/2018","Fleet Services","Fleet Management","R4000"
"Wolverhampton City Council","http://opendatacommunities.org/id/metropolitan-district-council/wolverhampton","704061","Guest Motors Limited","13519680","411.55","Services - Professional Fees","190510166","26/09/2018","Fleet Services","Fleet Management","R4400"
"Wolverhampton City Council","http://opendatacommunities.org/id/metropolitan-district-council/wolverhampton","704061","Guest Motors Limited","13519680","14.20","Services - Professional Fees","190510166","26/09/2018","Fleet Services","Fleet Management","R4400"
"Wolverhampton City Council","http://opendatacommunities.org/id/metropolitan-district-council/wolverhampton","704061","Guest Motors Limited","13519680","304.50","Services - Professional Fees","190510166","26/09/2018","Fleet Services","Fleet Management","R4400"
"Wolverhampton City Council","http://opendatacommunities.org/id/metropolitan-district-council/wolverhampton","704061","Guest Motors Limited","13043977","43.66","Equipment - Purchase","190504283","12/09/2018","Fleet Services","Fleet Management","R4000"
"Wolverhampton City Council","http://opendatacommunities.org/id/metropolitan-district-council/wolverhampton","704061","Guest Motors Limited","13043977","11.09","Equipment - Purchase","190504283","12/09/2018","Fleet Services","Fleet Management","R4000"
"Wolverhampton City Council","http://opendatacommunities.org/id/metropolitan-district-council/wolverhampton","704061","Guest Motors Limited","13044253","125.10","Equipment - Purchase","190508081","19/09/2018","Fleet Services","Fleet Management","R4000"
"Wolverhampton City Council","http://opendatacommunities.org/id/metropolitan-district-council/wolverhampton","704061","Guest Motors Limited","13044041","6.92","Equipment - Purchase","190504284","12/09/2018","Fleet Services","Fleet Management","R4000"
"Wolverhampton City Council","http://opendatacommunities.org/id/metropolitan-district-council/wolverhampton","704061","Guest Motors Limited","13044264","8.05","Equipment - Purchase","190508083","19/09/2018","Fleet Services","Fleet Management","R4000"
"Wolverhampton City Council","http://opendatacommunities.org/id/metropolitan-district-council/wolverhampton","704061","Guest Motors Limited","13044264","11.66","Equipment - Purchase","190508083","19/09/2018","Fleet Services","Fleet Management","R4000"
"Wolverhampton City Council","http://opendatacommunities.org/id/metropolitan-district-council/wolverhampton","704061","Guest Motors Limited","13044238","4.09","Equipment - Purchase","190508080","19/09/2018","Fleet Services","Fleet Management","R4000"
"Wolverhampton City Council","http://opendatacommunities.org/id/metropolitan-district-council/wolverhampton","704061","Guest Motors Limited","13044238","11.09","Equipment - Purchase","190508080","19/09/2018","Fleet Services","Fleet Management","R4000"
"Wolverhampton City Council","http://opendatacommunities.org/id/metropolitan-district-council/wolverhampton","704061","Guest Motors Limited","13044238","4.09","Equipment - Purchase","190508080","19/09/2018","Fleet Services","Fleet Management","R4000"
"Wolverhampton City Council","http://opendatacommunities.org/id/metropolitan-district-council/wolverhampton","704061","Guest Motors Limited","13044238","85.29","Equipment - Purchase","190508080","19/09/2018","Fleet Services","Fleet Management","R4000"
"Wolverhampton City Council","http://opendatacommunities.org/id/metropolitan-district-council/wolverhampton","704061","Guest Motors Limited","13044238","26.09","Equipment - Purchase","190508080","19/09/2018","Fleet Services","Fleet Management","R4000"
"Wolverhampton City Council","http://opendatacommunities.org/id/metropolitan-district-council/wolverhampton","704061","Guest Motors Limited","13044238","10.64","Equipment - Purchase","190508080","19/09/2018","Fleet Services","Fleet Management","R4000"
"Wolverhampton City Council","http://opendatacommunities.org/id/metropolitan-district-council/wolverhampton","704061","Guest Motors Limited","13044171","9.84","Equipment - Purchase","190505017","14/09/2018","Fleet Services","Fleet Management","R4000"
"Wolverhampton City Council","http://opendatacommunities.org/id/metropolitan-district-council/wolverhampton","704061","Guest Motors Limited","13044171","19.08","Equipment - Purchase","190505017","14/09/2018","Fleet Services","Fleet Management","R4000"
"Wolverhampton City Council","http://opendatacommunities.org/id/metropolitan-district-council/wolverhampton","704061","Guest Motors Limited","13044171","25.50","Equipment - Purchase","190505017","14/09/2018","Fleet Services","Fleet Management","R4000"
"Wolverhampton City Council","http://opendatacommunities.org/id/metropolitan-district-council/wolverhampton","704061","Guest Motors Limited","13044258","78.49","Equipment - Purchase","190508082","19/09/2018","Fleet Services","Fleet Management","R4000"
"Wolverhampton City Council","http://opendatacommunities.org/id/metropolitan-district-council/wolverhampton","704061","Guest Motors Limited","13044258","78.49","Equipment - Purchase","190508082","19/09/2018","Fleet Services","Fleet Management","R4000"
"Wolverhampton City Council","http://opendatacommunities.org/id/metropolitan-district-council/wolverhampton","704079","H Jenkinson & Company Ltd","SINV00818507","3,450.00","Furniture","130229025","26/09/2018","Adult Education","Old Hall Street Main","R4004"
"Wolverhampton City Council","http://opendatacommunities.org/id/metropolitan-district-council/wolverhampton","704079","H Jenkinson & Company Ltd","SINV00818505","1,240.00","Furniture","130229024","21/09/2018","Adult Education","Foyer Building","R4004"
"Wolverhampton City Council","http://opendatacommunities.org/id/metropolitan-district-council/wolverhampton","704079","H Jenkinson & Company Ltd","SINV00819289","495.50","Furniture","130229646","28/09/2018","Adult Education","The Maltings","R4004"
"Wolverhampton City Council","http://opendatacommunities.org/id/metropolitan-district-council/wolverhampton","704097","Hags-Smp Limited Rss Playmakers","058738","189.00","Equipment - R & M","130229188","26/09/2018","Environmental Maintenance","Parks - South West Area Management","R4003"
"Wolverhampton City Council","http://opendatacommunities.org/id/metropolitan-district-council/wolverhampton","704097","Hags-Smp Limited Rss Playmakers","059850","240.00","Equipment - R & M","130226105","05/09/2018","Environmental Maintenance","Parks - East Area Management","R4003"
"Wolverhampton City Council","http://opendatacommunities.org/id/metropolitan-district-council/wolverhampton","704097","Hags-Smp Limited Rss Playmakers","059914","47.04","Equipment - R & M","130226112","05/09/2018","Environmental Maintenance","Parks - South West Area Management","R4003"
"Wolverhampton City Council","http://opendatacommunities.org/id/metropolitan-district-council/wolverhampton","704097","Hags-Smp Limited Rss Playmakers","059907","95.00","Equipment - R & M","130226108","05/09/2018","Environmental Maintenance","Parks - East Area Management","R4003"
"Wolverhampton City Council","http://opendatacommunities.org/id/metropolitan-district-council/wolverhampton","704097","Hags-Smp Limited Rss Playmakers","059997","268.00","Equipment - R & M","130227421","12/09/2018","Environmental Maintenance","Parks - South West Area Management","R4003"
"Wolverhampton City Council","http://opendatacommunities.org/id/metropolitan-district-council/wolverhampton","704097","Hags-Smp Limited Rss Playmakers","057120","67.50","Equipment - R & M","130229187","26/09/2018","Environmental Maintenance","Parks - East Area Management","R4003"
"Wolverhampton City Council","http://opendatacommunities.org/id/metropolitan-district-council/wolverhampton","704097","Hags-Smp Limited Rss Playmakers","059849","135.00","Equipment - R & M","130226104","05/09/2018","Environmental Maintenance","Parks - East Area Management","R4003"
"Wolverhampton City Council","http://opendatacommunities.org/id/metropolitan-district-council/wolverhampton","704097","Hags-Smp Limited Rss Playmakers","059909","23.50","Equipment - R & M","130226110","05/09/2018","Environmental Maintenance","Parks - South West Area Management","R4003"
"Wolverhampton City Council","http://opendatacommunities.org/id/metropolitan-district-council/wolverhampton","704097","Hags-Smp Limited Rss Playmakers","059882","95.00","Equipment - R & M","130226107","05/09/2018","Environmental Maintenance","Parks - East Area Management","R4003"
"Wolverhampton City Council","http://opendatacommunities.org/id/metropolitan-district-council/wolverhampton","704097","Hags-Smp Limited Rss Playmakers","059687","22.80","Equipment - R & M","130227420","12/09/2018","Environmental Maintenance","Parks - South West Area Management","R4003"
"Wolverhampton City Council","http://opendatacommunities.org/id/metropolitan-district-council/wolverhampton","704097","Hags-Smp Limited Rss Playmakers","059847","135.00","Equipment - R & M","130226102","05/09/2018","Environmental Maintenance","Parks - East Area Management","R4003"
"Wolverhampton City Council","http://opendatacommunities.org/id/metropolitan-district-council/wolverhampton","704097","Hags-Smp Limited Rss Playmakers","059908","11.40","Equipment - R & M","130226109","05/09/2018","Environmental Maintenance","Parks - East Area Management","R4003"
"Wolverhampton City Council","http://opendatacommunities.org/id/metropolitan-district-council/wolverhampton","704097","Hags-Smp Limited Rss Playmakers","059848","95.00","Equipment - R & M","130226103","05/09/2018","Environmental Maintenance","Parks - East Area Management","R4003"
"Wolverhampton City Council","http://opendatacommunities.org/id/metropolitan-district-council/wolverhampton","704097","Hags-Smp Limited Rss Playmakers","059999","23.50","Equipment - R & M","130227423","12/09/2018","Environmental Maintenance","Parks - South West Area Management","R4003"
"Wolverhampton City Council","http://opendatacommunities.org/id/metropolitan-district-council/wolverhampton","704097","Hags-Smp Limited Rss Playmakers","059915","238.50","Equipment - R & M","130226113","05/09/2018","Environmental Maintenance","Parks - South West Area Management","R4003"
"Wolverhampton City Council","http://opendatacommunities.org/id/metropolitan-district-council/wolverhampton","704097","Hags-Smp Limited Rss Playmakers","059865","161.00","Equipment - R & M","130226106","05/09/2018","Environmental Maintenance","Parks - East Area Management","R4003"
"Wolverhampton City Council","http://opendatacommunities.org/id/metropolitan-district-council/wolverhampton","704097","Hags-Smp Limited Rss Playmakers","059910","87.00","Equipment - R & M","130226111","05/09/2018","Environmental Maintenance","Parks - South West Area Management","R4003"
"Wolverhampton City Council","http://opendatacommunities.org/id/metropolitan-district-council/wolverhampton","704097","Hags-Smp Limited Rss Playmakers","059998","18.75","Equipment - R & M","130227422","12/09/2018","Environmental Maintenance","Parks - South West Area Management","R4003"
"Wolverhampton City Council","http://opendatacommunities.org/id/metropolitan-district-council/wolverhampton","704143","Hartills Of Sedgley","11296","180.00","Services - Professional Fees","130226948","19/09/2018","Bereavement Services","Cemeteries","R4400"
"Wolverhampton City Council","http://opendatacommunities.org/id/metropolitan-district-council/wolverhampton","704144","Hartshorne Motor Services Limited","1340788-01","91.00","Equipment - Purchase","190505025","14/09/2018","Fleet Services","Fleet Management","R4000"
"Wolverhampton City Council","http://opendatacommunities.org/id/metropolitan-district-council/wolverhampton","704144","Hartshorne Motor Services Limited","1340975-01","392.39","Equipment - Purchase","190508087","19/09/2018","Fleet Services","Fleet Management","R4000"
"Wolverhampton City Council","http://opendatacommunities.org/id/metropolitan-district-council/wolverhampton","704190","Heantun Care Children & Families","0000015086","668.85","TPP - Child Care provided for client","130224706","12/09/2018","Adult Education","Discretionary Fund","R5034"
"Wolverhampton City Council","http://opendatacommunities.org/id/metropolitan-district-council/wolverhampton","704190","Heantun Care Children & Families","0000014774","301.65","TPP - Child Care provided for client","130224704","12/09/2018","Adult Education","Discretionary Fund","R5034"
"Wolverhampton City Council","http://opendatacommunities.org/id/metropolitan-district-council/wolverhampton","704190","Heantun Care Children & Families","0000015256","523.05","TPP - Child Care provided for client","130224707","12/09/2018","Adult Education","Discretionary Fund","R5034"
"Wolverhampton City Council","http://opendatacommunities.org/id/metropolitan-district-council/wolverhampton","704190","Heantun Care Children & Families","0000014622","864.00","TPP - Child Care provided for client","130224703","12/09/2018","Adult Education","Discretionary Fund","R5034"
"Wolverhampton City Council","http://opendatacommunities.org/id/metropolitan-district-council/wolverhampton","704190","Heantun Care Children & Families","0000014934","711.75","TPP - Child Care provided for client","130224705","12/09/2018","Adult Education","Discretionary Fund","R5034"
"Wolverhampton City Council","http://opendatacommunities.org/id/metropolitan-district-council/wolverhampton","704244","HFN Landscapes Home Farm Nurseries","17658","8,582.09","Construction and Conversion","130228681","19/09/2018","-","GF - Disposals Programme (Non-Strategic)","C1100"
"Wolverhampton City Council","http://opendatacommunities.org/id/metropolitan-district-council/wolverhampton","704266","Hills Coaches Limited","32625","120.00","Client Transport","130215012","05/09/2018","Governance Services","Democratic Support","R3042"
"Wolverhampton City Council","http://opendatacommunities.org/id/metropolitan-district-council/wolverhampton","704266","Hills Coaches Limited","32626","120.00","Client Transport","130215013","21/09/2018","Governance Services","Democratic Support","R3042"
"Wolverhampton City Council","http://opendatacommunities.org/id/metropolitan-district-council/wolverhampton","704271","Hilton Main Construction Limited","33311","660.00","R&M - Departmental response (external)","130226789","19/09/2018","Facilities Management","Management of Vacant Properties","R2003"
"Wolverhampton City Council","http://opendatacommunities.org/id/metropolitan-district-council/wolverhampton","704271","Hilton Main Construction Limited","363240","4,158.00","R&M - Departmental planned (external)","130225993","05/09/2018","Parking Services","Unmanned Car Parks","R2001"
"Wolverhampton City Council","http://opendatacommunities.org/id/metropolitan-district-council/wolverhampton","704271","Hilton Main Construction Limited","33356","960.00","R&M - Departmental planned (external)","130226950","26/09/2018","Facilities Management","Hickman Avenue Depot","R2001"
"Wolverhampton City Council","http://opendatacommunities.org/id/metropolitan-district-council/wolverhampton","704271","Hilton Main Construction Limited","33355","17,250.00","R&M - Departmental response (external)","130226949","26/09/2018","Highways Maintenance","Highway & Land Drainage","R2003"
"Wolverhampton City Council","http://opendatacommunities.org/id/metropolitan-district-council/wolverhampton","704271","Hilton Main Construction Limited","33445","6,761.64","R&M - Departmental response (external)","130227804","26/09/2018","Highways Maintenance","Gully Sweeping","R2003"
"Wolverhampton City Council","http://opendatacommunities.org/id/metropolitan-district-council/wolverhampton","704271","Hilton Main Construction Limited","33376","2,175.00","Hire of Vehicles","190506328","19/09/2018","Fleet Services","Fleet Management","R3200"
"Wolverhampton City Council","http://opendatacommunities.org/id/metropolitan-district-council/wolverhampton","704271","Hilton Main Construction Limited","33373","650.00","R&M - Departmental response (external)","130227180","26/09/2018","Highways Maintenance","Planned Highways Maintenance","R2003"
"Wolverhampton City Council","http://opendatacommunities.org/id/metropolitan-district-council/wolverhampton","704271","Hilton Main Construction Limited","33418","4,402.84","Construction and Conversion","130227311","26/09/2018","-","Active Travel Programme","C1100"
"Wolverhampton City Council","http://opendatacommunities.org/id/metropolitan-district-council/wolverhampton","704271","Hilton Main Construction Limited","33314","1,360.00","R&M - Departmental response (external)","130226792","19/09/2018","Facilities Management","Hickman Avenue Depot","R2003"
"Wolverhampton City Council","http://opendatacommunities.org/id/metropolitan-district-council/wolverhampton","704271","Hilton Main Construction Limited","33357","860.00","R&M - Departmental response (external)","130226951","26/09/2018","Facilities Management","Hickman Avenue Depot","R2003"
"Wolverhampton City Council","http://opendatacommunities.org/id/metropolitan-district-council/wolverhampton","704271","Hilton Main Construction Limited","33368","3,987.44","R&M - Departmental response (external)","130227175","26/09/2018","Highways Maintenance","Brook course, Culvert & Subway Maintenance","R2003"
"Wolverhampton City Council","http://opendatacommunities.org/id/metropolitan-district-council/wolverhampton","704271","Hilton Main Construction Limited","33452","6,204.00","Construction and Conversion","130228276","26/09/2018","-","Sports Investment Strategy","C1100"
"Wolverhampton City Council","http://opendatacommunities.org/id/metropolitan-district-council/wolverhampton","704271","Hilton Main Construction Limited","33367","10,628.39","R&M - Departmental response (external)","130227174","26/09/2018","Highways Maintenance","Patching","R2003"
"Wolverhampton City Council","http://opendatacommunities.org/id/metropolitan-district-council/wolverhampton","704271","Hilton Main Construction Limited","33370","3,510.56","R&M - Departmental response (external)","130227177","26/09/2018","Highways Maintenance","Patching","R2003"
"Wolverhampton City Council","http://opendatacommunities.org/id/metropolitan-district-council/wolverhampton","704271","Hilton Main Construction Limited","33255","2,020.83","Equipment - Purchase","130225992","07/09/2018","Environmental Maintenance","Street Cleansing Overheads","R4000"
"Wolverhampton City Council","http://opendatacommunities.org/id/metropolitan-district-council/wolverhampton","704271","Hilton Main Construction Limited","32898","7,080.89","R&M - Departmental response (external)","130229027","26/09/2018","Transportation","Bridges & Subways","R2003"
"Wolverhampton City Council","http://opendatacommunities.org/id/metropolitan-district-council/wolverhampton","704271","Hilton Main Construction Limited","33377","4,600.00","R&M - Departmental response (external)","130227182","26/09/2018","Highways Maintenance","Gully Sweeping","R2003"
"Wolverhampton City Council","http://opendatacommunities.org/id/metropolitan-district-council/wolverhampton","704271","Hilton Main Construction Limited","33369","7,760.00","R&M - Departmental response (external)","130227176","26/09/2018","Highways Maintenance","Patching","R2003"
"Wolverhampton City Council","http://opendatacommunities.org/id/metropolitan-district-council/wolverhampton","704271","Hilton Main Construction Limited","33312","860.00","R&M - Departmental response (external)","130226790","19/09/2018","Cleaning","Priory Green","R2003"
"Wolverhampton City Council","http://opendatacommunities.org/id/metropolitan-district-council/wolverhampton","704271","Hilton Main Construction Limited","32866","26,487.00","R&M - Departmental response (external)","130229026","26/09/2018","Highways Maintenance","Planned Highways Maintenance","R2003"
"Wolverhampton City Council","http://opendatacommunities.org/id/metropolitan-district-council/wolverhampton","704271","Hilton Main Construction Limited","33374","1,200.00","R&M - Departmental response (external)","130227181","26/09/2018","Highways Maintenance","Patching","R2003"
"Wolverhampton City Council","http://opendatacommunities.org/id/metropolitan-district-council/wolverhampton","704271","Hilton Main Construction Limited","33313","1,200.00","R&M - Departmental response (external)","130226791","19/09/2018","Facilities Management","Hickman Avenue Depot","R2003"
"Wolverhampton City Council","http://opendatacommunities.org/id/metropolitan-district-council/wolverhampton","704271","Hilton Main Construction Limited","33375","2,175.00","Hire of Vehicles","190506327","19/09/2018","Fleet Services","Fleet Management","R3200"
"Wolverhampton City Council","http://opendatacommunities.org/id/metropolitan-district-council/wolverhampton","704271","Hilton Main Construction Limited","33254","2,640.00","Construction and Conversion","130225991","07/09/2018","-","Integrated Transport","C1100"
"Wolverhampton City Council","http://opendatacommunities.org/id/metropolitan-district-council/wolverhampton","704271","Hilton Main Construction Limited","33362","15,624.00","R&M - Departmental response (external)","130226953","26/09/2018","Highways Maintenance","Patching","R2003"
"Wolverhampton City Council","http://opendatacommunities.org/id/metropolitan-district-council/wolverhampton","704271","Hilton Main Construction Limited","33372","1,250.40","R&M - Departmental response (external)","130227179","26/09/2018","Highways Maintenance","Gully Sweeping","R2003"
"Wolverhampton City Council","http://opendatacommunities.org/id/metropolitan-district-council/wolverhampton","704271","Hilton Main Construction Limited","33420","5,537.18","R&M - Departmental response (external)","130227313","26/09/2018","Highways Maintenance","Fencing & Guard Rails","R2003"
"Wolverhampton City Council","http://opendatacommunities.org/id/metropolitan-district-council/wolverhampton","704271","Hilton Main Construction Limited","33419","1,679.02","Materials","130227312","26/09/2018","Bereavement Services","Bereavement services - Grounds maintenance","R4007"
"Wolverhampton City Council","http://opendatacommunities.org/id/metropolitan-district-council/wolverhampton","704271","Hilton Main Construction Limited","33358","1,325.00","R&M - Departmental response (external)","130226952","26/09/2018","Facilities Management","Caretakers Community Centre","R2003"
"Wolverhampton City Council","http://opendatacommunities.org/id/metropolitan-district-council/wolverhampton","704271","Hilton Main Construction Limited","33315","1,050.00","R&M - Departmental response (external)","130226793","19/09/2018","Facilities Management","Caretakers Community Centre","R2003"
"Wolverhampton City Council","http://opendatacommunities.org/id/metropolitan-district-council/wolverhampton","704289","HMCTS","SMITH001","385.00","Services - Fees and Charges","190504666","14/09/2018","Safeguarding","Court of Protection, Funerals and Protection of Property","R4401"
"Wolverhampton City Council","http://opendatacommunities.org/id/metropolitan-district-council/wolverhampton","704289","HMCTS","Rodgers0001","385.00","Services - Fees and Charges","190501934","05/09/2018","Safeguarding","Court of Protection, Funerals and Protection of Property","R4401"
"Wolverhampton City Council","http://opendatacommunities.org/id/metropolitan-district-council/wolverhampton","704296","Holiday Inn","2017006999A","375.00","Room Hire","130228756","19/09/2018","Health Protection & NHS Facing","Health Protection & NHS Facing","R2201"
"Wolverhampton City Council","http://opendatacommunities.org/id/metropolitan-district-council/wolverhampton","704318","Homepoint Estate Agents","2659","368.00","No Recourse to Public Funds","130228759","21/09/2018","Child Protection","CIN/CP Social Work Unit - Area 3","R6314"
"Wolverhampton City Council","http://opendatacommunities.org/id/metropolitan-district-council/wolverhampton","704324","Hope Community Project Wolverhampton","H00032","3,908.00","Grant Payments","130228096","19/09/2018","Community Safety","SWP - Gangs","R4700"
"Wolverhampton City Council","http://opendatacommunities.org/id/metropolitan-district-council/wolverhampton","704328","Horizon Care & Education Group Limited","10981","13,204.20","TPP - Independent Schools","130227571","26/09/2018","Special Educational Needs","SEN Education OOC","R5036"
"Wolverhampton City Council","http://opendatacommunities.org/id/metropolitan-district-council/wolverhampton","704328","Horizon Care & Education Group Limited","P185678 14101820180921","12,324.00","TPP - Residential Care - Long Term","190509827","26/09/2018","Looked After Children","Out of City Placements","R5400"
"Wolverhampton City Council","http://opendatacommunities.org/id/metropolitan-district-council/wolverhampton","704328","Horizon Care & Education Group Limited","P185679 14101820180921","17,924.00","TPP - Residential Care - Long Term","190509828","26/09/2018","Looked After Children","Out of City Placements","R5400"
"Wolverhampton City Council","http://opendatacommunities.org/id/metropolitan-district-council/wolverhampton","704469","Indespension Limited","2415095","18.25","Equipment - Purchase","190505036","14/09/2018","Fleet Services","Fleet Management","R4000"
"Wolverhampton City Council","http://opendatacommunities.org/id/metropolitan-district-council/wolverhampton","704488","Initial Projects Limited T/A Enitial","79540","4,024.00","Construction and Conversion","130227314","26/09/2018","-","Bowman�s Harbour - Former Landfill Sites","C1100"
"Wolverhampton City Council","http://opendatacommunities.org/id/metropolitan-district-council/wolverhampton","704488","Initial Projects Limited T/A Enitial","79423","225.00","Services - Professional Fees","130226653","19/09/2018","Public Protection","Contaminated Land","R4400"
"Wolverhampton City Council","http://opendatacommunities.org/id/metropolitan-district-council/wolverhampton","704488","Initial Projects Limited T/A Enitial","79542","8,048.00","Construction and Conversion","130227315","26/09/2018","-","Bowman�s Harbour - Former Landfill Sites","C1100"
"Wolverhampton City Council","http://opendatacommunities.org/id/metropolitan-district-council/wolverhampton","704489","Initial Washroom Hygiene Ltd(Solutions)","32830803","22.89","Cleaning Supplies and Materials","130227030","07/09/2018","Markets","Bilston Market and Licensed Operations","R2705"
"Wolverhampton City Council","http://opendatacommunities.org/id/metropolitan-district-council/wolverhampton","704524","Integrated Water Services Limited","CD200093857","280.00","R&M - Departmental planned (external)","130224711","14/09/2018","Maintenance Programme","Centralised R&M","R2001"
"Wolverhampton City Council","http://opendatacommunities.org/id/metropolitan-district-council/wolverhampton","704524","Integrated Water Services Limited","CD200094381","227.75","R&M - Departmental planned (external)","130225683","05/09/2018","Maintenance Programme","Centralised R&M","R2001"
"Wolverhampton City Council","http://opendatacommunities.org/id/metropolitan-district-council/wolverhampton","704524","Integrated Water Services Limited","CD200094381","79.00","R&M - Departmental planned (external)","130225683","05/09/2018","Maintenance Programme","Centralised R&M","R2001"
"Wolverhampton City Council","http://opendatacommunities.org/id/metropolitan-district-council/wolverhampton","704524","Integrated Water Services Limited","CD200094388","6.82","R&M - Departmental planned (external)","130225684","05/09/2018","Maintenance Programme","Centralised R&M","R2001"
"Wolverhampton City Council","http://opendatacommunities.org/id/metropolitan-district-council/wolverhampton","704524","Integrated Water Services Limited","CD200094388","34.25","R&M - Departmental planned (external)","130225684","05/09/2018","Maintenance Programme","Centralised R&M","R2001"
"Wolverhampton City Council","http://opendatacommunities.org/id/metropolitan-district-council/wolverhampton","704524","Integrated Water Services Limited","CD200094388","306.75","R&M - Departmental planned (external)","130225684","05/09/2018","Maintenance Programme","Centralised R&M","R2001"
"Wolverhampton City Council","http://opendatacommunities.org/id/metropolitan-district-council/wolverhampton","704545","Interwaste Municipal Limitedc/O Fleet Ca","28314","345.00","Equipment - Purchase","190502333","05/09/2018","Fleet Services","Fleet Management","R4000"
"Wolverhampton City Council","http://opendatacommunities.org/id/metropolitan-district-council/wolverhampton","704550","Invasive Vegetation Manag & Treatmnt Ltd","004966","792.50","Construction and Conversion","130228283","19/09/2018","-","GF - Blue Network","C1100"
"Wolverhampton City Council","http://opendatacommunities.org/id/metropolitan-district-council/wolverhampton","704593","J Edwards Glass","0000102600","60.00","R&M - Departmental planned (external)","130227806","12/09/2018","Facilities Management","Parkfields Office Accomodation","R2001"
"Wolverhampton City Council","http://opendatacommunities.org/id/metropolitan-district-council/wolverhampton","704593","J Edwards Glass","0000102615","45.00","Materials","130227807","26/09/2018","Maintenance Programme","Civic Centre Repairs & Maintenance","R4007"
"Wolverhampton City Council","http://opendatacommunities.org/id/metropolitan-district-council/wolverhampton","704593","J Edwards Glass","0000102656","162.00","R&M - Departmental planned (external)","130229033","26/09/2018","Maintenance Programme","Civic Centre Repairs & Maintenance","R2001"
"Wolverhampton City Council","http://opendatacommunities.org/id/metropolitan-district-council/wolverhampton","704640","Jackdaw (Tools) Limited","JV418789","9.01","Equipment - Purchase","190504326","12/09/2018","Fleet Services","Fleet Management","R4000"
"Wolverhampton City Council","http://opendatacommunities.org/id/metropolitan-district-council/wolverhampton","704640","Jackdaw (Tools) Limited","JV418789","7.82","Equipment - Purchase","190504326","12/09/2018","Fleet Services","Fleet Management","R4000"
"Wolverhampton City Council","http://opendatacommunities.org/id/metropolitan-district-council/wolverhampton","704640","Jackdaw (Tools) Limited","JV418789","9.42","Equipment - Purchase","190504326","12/09/2018","Fleet Services","Fleet Management","R4000"
"Wolverhampton City Council","http://opendatacommunities.org/id/metropolitan-district-council/wolverhampton","704640","Jackdaw (Tools) Limited","JV418345","3.83","Equipment - Purchase","190503215","07/09/2018","Fleet Services","Fleet Management","R4000"
"Wolverhampton City Council","http://opendatacommunities.org/id/metropolitan-district-council/wolverhampton","704640","Jackdaw (Tools) Limited","JV418345","12.06","Equipment - Purchase","190503215","07/09/2018","Fleet Services","Fleet Management","R4000"
"Wolverhampton City Council","http://opendatacommunities.org/id/metropolitan-district-council/wolverhampton","704640","Jackdaw (Tools) Limited","JV419168","6.15","Equipment - Purchase","190504327","12/09/2018","Fleet Services","Fleet Management","R4000"
"Wolverhampton City Council","http://opendatacommunities.org/id/metropolitan-district-council/wolverhampton","704649","Jacobs U.K.Limited","B1018000-225-012","90.43","Construction and Conversion","130226796","19/09/2018","-","Decent Homes - Stock Improvements","C1100"
"Wolverhampton City Council","http://opendatacommunities.org/id/metropolitan-district-council/wolverhampton","704649","Jacobs U.K.Limited","B1018000-225-014","433.44","Construction and Conversion","130226798","19/09/2018","-","Decent Homes - Stock Improvements","C1100"
"Wolverhampton City Council","http://opendatacommunities.org/id/metropolitan-district-council/wolverhampton","704649","Jacobs U.K.Limited","B1019000-225-008","15,511.52","Services - Professional Fees","130226809","19/09/2018","Maintenance Programme","Centralised R&M","R4400"
"Wolverhampton City Council","http://opendatacommunities.org/id/metropolitan-district-council/wolverhampton","704649","Jacobs U.K.Limited","B1019000-225-002","9,329.32","Construction and Conversion","130226803","19/09/2018","-","Decent Homes - Stock Improvements","C1100"
"Wolverhampton City Council","http://opendatacommunities.org/id/metropolitan-district-council/wolverhampton","704649","Jacobs U.K.Limited","B1019000-225-004","288.96","Services - Professional Fees","130226805","19/09/2018","Facilities Management","Civic Centre","R4400"
"Wolverhampton City Council","http://opendatacommunities.org/id/metropolitan-district-council/wolverhampton","704649","Jacobs U.K.Limited","B1018000-225-016","1,911.00","Construction and Conversion","130226800","19/09/2018","-","GF - Disposals Programme (Non-Strategic)","C1100"
"Wolverhampton City Council","http://opendatacommunities.org/id/metropolitan-district-council/wolverhampton","704649","Jacobs U.K.Limited","B1018000-225-011","830.80","Construction and Conversion","130226795","19/09/2018","-","Decent Homes - Stock Improvements","C1100"
"Wolverhampton City Council","http://opendatacommunities.org/id/metropolitan-district-council/wolverhampton","704649","Jacobs U.K.Limited","B1019000-225-007","3,900.96","Services - Professional Fees","130226808","19/09/2018","Corporate Asset Management","Statutory Surveys","R4400"
"Wolverhampton City Council","http://opendatacommunities.org/id/metropolitan-district-council/wolverhampton","704649","Jacobs U.K.Limited","B1018000-225-015","10,407.60","Services - Professional Fees","130226799","26/09/2018","Corporate Asset Management","Strategic Asset Management Team","R4400"
"Wolverhampton City Council","http://opendatacommunities.org/id/metropolitan-district-council/wolverhampton","704649","Jacobs U.K.Limited","B1018000-225-010","16,881.68","Construction and Conversion","130226794","19/09/2018","-","Decent Homes - Stock Improvements","C1100"
"Wolverhampton City Council","http://opendatacommunities.org/id/metropolitan-district-council/wolverhampton","704649","Jacobs U.K.Limited","B1019000-225-006","5,959.80","Services - Professional Fees","130226807","19/09/2018","Corporate Asset Management","Statutory Surveys","R4400"
"Wolverhampton City Council","http://opendatacommunities.org/id/metropolitan-district-council/wolverhampton","704649","Jacobs U.K.Limited","B1019000-225-003","10,080.49","Construction and Conversion","130226804","19/09/2018","-","Decent Homes - Stock Improvements","C1100"
"Wolverhampton City Council","http://opendatacommunities.org/id/metropolitan-district-council/wolverhampton","704649","Jacobs U.K.Limited","B1019000-225-005","144.48","Services - Professional Fees","130226806","19/09/2018","Housing Revenue Account","HRA General","R4400"
"Wolverhampton City Council","http://opendatacommunities.org/id/metropolitan-district-council/wolverhampton","704649","Jacobs U.K.Limited","B1019000-225-001","1,155.84","Construction and Conversion","130226802","28/09/2018","-","Black Country Growth Deal � Cultural Programme","C1100"
"Wolverhampton City Council","http://opendatacommunities.org/id/metropolitan-district-council/wolverhampton","704649","Jacobs U.K.Limited","B1019000-225-001","794.64","Construction and Conversion","130226802","28/09/2018","-","Black Country Growth Deal � Cultural Programme","C1100"
"Wolverhampton City Council","http://opendatacommunities.org/id/metropolitan-district-council/wolverhampton","704649","Jacobs U.K.Limited","B1018000-225-013","1,119.72","Construction and Conversion","130226797","19/09/2018","-","Decent Homes - Stock Improvements","C1100"
"Wolverhampton City Council","http://opendatacommunities.org/id/metropolitan-district-council/wolverhampton","704649","Jacobs U.K.Limited","B1018000-225-017","378.56","Services - Professional Fees","130226801","19/09/2018","Capital Programme","Capital Programme Team work for external clients","R4400"
"Wolverhampton City Council","http://opendatacommunities.org/id/metropolitan-district-council/wolverhampton","704649","Jacobs U.K.Limited","B1019000-225-009","9,882.72","Services - Professional Fees","130226810","19/09/2018","Maintenance Programme","Centralised R&M","R4400"
"Wolverhampton City Council","http://opendatacommunities.org/id/metropolitan-district-council/wolverhampton","704649","Jacobs U.K.Limited","B1019000-224-001","-4,129.68","Construction and Conversion","130224109","19/09/2018","-","Black Country Growth Deal � Cultural Programme","C1100"
"Wolverhampton City Council","http://opendatacommunities.org/id/metropolitan-district-council/wolverhampton","704657","James Lister & Sons Limited","0100/02843163","32.20","Protective Clothing","130228097","28/09/2018","Transportation","Passenger Transport - General","R4200"
"Wolverhampton City Council","http://opendatacommunities.org/id/metropolitan-district-council/wolverhampton","704657","James Lister & Sons Limited","0100/02843153","12.95","Protective Clothing","130227923","19/09/2018","Markets","Bilston Market and Licensed Operations","R4200"
"Wolverhampton City Council","http://opendatacommunities.org/id/metropolitan-district-council/wolverhampton","704657","James Lister & Sons Limited","0100/02843157","154.80","Protective Clothing","130227927","19/09/2018","Highways Maintenance","Patching","R4200"
"Wolverhampton City Council","http://opendatacommunities.org/id/metropolitan-district-council/wolverhampton","704657","James Lister & Sons Limited","0100/02843154","621.60","Protective Clothing","130227924","19/09/2018","Waste and Recycling Service","Waste Collection and Recycling Service - General","R4200"
"Wolverhampton City Council","http://opendatacommunities.org/id/metropolitan-district-council/wolverhampton","704657","James Lister & Sons Limited","0100/01040833","-39.99","Protective Clothing","130228284","19/09/2018","Fleet Services","Fleet Management","R4200"
"Wolverhampton City Council","http://opendatacommunities.org/id/metropolitan-district-council/wolverhampton","704657","James Lister & Sons Limited","0100/02843162","79.98","Protective Clothing","130227932","19/09/2018","Fleet Services","Fleet Management","R4200"
"Wolverhampton City Council","http://opendatacommunities.org/id/metropolitan-district-council/wolverhampton","704657","James Lister & Sons Limited","0100/02840280","16.77","Protective Clothing","130227034","05/09/2018","Bereavement Services","Bereavement services - Grounds maintenance","R4200"
"Wolverhampton City Council","http://opendatacommunities.org/id/metropolitan-district-council/wolverhampton","704657","James Lister & Sons Limited","0100/02810363","1.60","Protective Clothing","130217095","05/09/2018","ICTS","Strategic ICTS (ICT Service Budget)","R4200"
"Wolverhampton City Council","http://opendatacommunities.org/id/metropolitan-district-council/wolverhampton","704657","James Lister & Sons Limited","0100/02841349","1,511.18","Protective Clothing","130227318","12/09/2018","Waste and Recycling Service","Waste Collection and Recycling Service - General","R4200"
"Wolverhampton City Council","http://opendatacommunities.org/id/metropolitan-district-council/wolverhampton","704657","James Lister & Sons Limited","240/02839748","138.63","Equipment - Purchase","190504298","12/09/2018","Fleet Services","Fleet Management","R4000"
"Wolverhampton City Council","http://opendatacommunities.org/id/metropolitan-district-council/wolverhampton","704657","James Lister & Sons Limited","0100/02841350","39.95","Protective Clothing","130227319","07/09/2018","Waste and Recycling Service","Waste Collection and Recycling Service - General","R4200"
"Wolverhampton City Council","http://opendatacommunities.org/id/metropolitan-district-council/wolverhampton","704657","James Lister & Sons Limited","0100/02845570","287.04","Protective Clothing","130229042","26/09/2018","Catering","Education Catering - General Overheads","R4200"
"Wolverhampton City Council","http://opendatacommunities.org/id/metropolitan-district-council/wolverhampton","704657","James Lister & Sons Limited","0100/02843168","195.00","Protective Clothing","130228098","26/09/2018","Transportation","Passenger Transport - General","R4200"
"Wolverhampton City Council","http://opendatacommunities.org/id/metropolitan-district-council/wolverhampton","704657","James Lister & Sons Limited","0100/02838655","159.04","Protective Clothing","130226660","14/09/2018","Waste and Recycling Service","Waste Collection and Recycling Service - General","R4200"
"Wolverhampton City Council","http://opendatacommunities.org/id/metropolitan-district-council/wolverhampton","704657","James Lister & Sons Limited","0100/02836365","2,853.96","Protective Clothing","130226127","14/09/2018","Waste and Recycling Service","Waste Collection and Recycling Service - General","R4200"
"Wolverhampton City Council","http://opendatacommunities.org/id/metropolitan-district-council/wolverhampton","704657","James Lister & Sons Limited","0100/02847186","31.75","Protective Clothing","130229265","28/09/2018","ICTS","Strategic ICTS (ICT Service Budget)","R4200"
"Wolverhampton City Council","http://opendatacommunities.org/id/metropolitan-district-council/wolverhampton","704657","James Lister & Sons Limited","0100/02843156","195.00","Protective Clothing","130227926","19/09/2018","Catering","Education Catering - General Overheads","R4200"
"Wolverhampton City Council","http://opendatacommunities.org/id/metropolitan-district-council/wolverhampton","704657","James Lister & Sons Limited","0100/02843159","32.50","Protective Clothing","130227929","19/09/2018","Markets","Wholesale Market Facilities Management","R4200"
"Wolverhampton City Council","http://opendatacommunities.org/id/metropolitan-district-council/wolverhampton","704657","James Lister & Sons Limited","0100/02843164","30.90","Protective Clothing","130227933","19/09/2018","Transportation","Passenger Transport - General","R4200"
"Wolverhampton City Council","http://opendatacommunities.org/id/metropolitan-district-council/wolverhampton","704657","James Lister & Sons Limited","0100/02843165","368.50","Protective Clothing","130227934","19/09/2018","Highways Maintenance","Patching","R4200"
"Wolverhampton City Council","http://opendatacommunities.org/id/metropolitan-district-council/wolverhampton","704657","James Lister & Sons Limited","0100/02845565","87.05","Protective Clothing","130229037","26/09/2018","Markets","Wolverhampton Indoor and Open Market","R4200"
"Wolverhampton City Council","http://opendatacommunities.org/id/metropolitan-district-council/wolverhampton","704657","James Lister & Sons Limited","0100/02845566","127.00","Protective Clothing","130229038","26/09/2018","Environmental Maintenance","Ground Maintenance East","R4200"
"Wolverhampton City Council","http://opendatacommunities.org/id/metropolitan-district-council/wolverhampton","704657","James Lister & Sons Limited","0100/02836376","370.30","Protective Clothing","130226138","14/09/2018","Waste and Recycling Service","Waste Collection and Recycling Service - General","R4200"
"Wolverhampton City Council","http://opendatacommunities.org/id/metropolitan-district-council/wolverhampton","704657","James Lister & Sons Limited","0100/02836372","106.60","Protective Clothing","130226134","14/09/2018","Waste and Recycling Service","Waste Collection and Recycling Service - General","R4200"
"Wolverhampton City Council","http://opendatacommunities.org/id/metropolitan-district-council/wolverhampton","704657","James Lister & Sons Limited","240/02837868","163.03","Equipment - Purchase","190501390","05/09/2018","Fleet Services","Fleet Management","R4000"
"Wolverhampton City Council","http://opendatacommunities.org/id/metropolitan-district-council/wolverhampton","704657","James Lister & Sons Limited","240/02837869","136.29","Equipment - Purchase","190502331","05/09/2018","Fleet Services","Fleet Management","R4000"
"Wolverhampton City Council","http://opendatacommunities.org/id/metropolitan-district-council/wolverhampton","704657","James Lister & Sons Limited","240/02837867","88.83","Equipment - Purchase","190502330","05/09/2018","Fleet Services","Fleet Management","R4000"
"Wolverhampton City Council","http://opendatacommunities.org/id/metropolitan-district-council/wolverhampton","704657","James Lister & Sons Limited","0100/02841348","39.90","Protective Clothing","130227317","07/09/2018","Leisure Services","Aldersley Leisure Village","R4200"
"Wolverhampton City Council","http://opendatacommunities.org/id/metropolitan-district-council/wolverhampton","704657","James Lister & Sons Limited","0100/02843158","45.00","Protective Clothing","130227928","19/09/2018","Highways Maintenance","Patching","R4200"
"Wolverhampton City Council","http://opendatacommunities.org/id/metropolitan-district-council/wolverhampton","704657","James Lister & Sons Limited","0100/02843166","269.50","Protective Clothing","130227935","19/09/2018","Waste and Recycling Service","Waste Collection and Recycling Service - General","R4200"
"Wolverhampton City Council","http://opendatacommunities.org/id/metropolitan-district-council/wolverhampton","704657","James Lister & Sons Limited","0100/02843155","63.50","Protective Clothing","130227925","19/09/2018","Environmental Maintenance","Ground Maintenance East","R4200"
"Wolverhampton City Council","http://opendatacommunities.org/id/metropolitan-district-council/wolverhampton","704657","James Lister & Sons Limited","0100/02843161","19.25","Protective Clothing","130227931","19/09/2018","Waste and Recycling Service","Waste Collection and Recycling Service - General","R4200"
"Wolverhampton City Council","http://opendatacommunities.org/id/metropolitan-district-council/wolverhampton","704657","James Lister & Sons Limited","0100/02836360","41.97","Protective Clothing","130226122","19/09/2018","Environmental Maintenance","Parks - Ranger Service","R4200"
"Wolverhampton City Council","http://opendatacommunities.org/id/metropolitan-district-council/wolverhampton","704657","James Lister & Sons Limited","0100/02845569","8.20","Protective Clothing","130229041","26/09/2018","Fleet Services","Fleet Management","R4200"
"Wolverhampton City Council","http://opendatacommunities.org/id/metropolitan-district-council/wolverhampton","704657","James Lister & Sons Limited","0100/02845568","5.70","Protective Clothing","130229040","26/09/2018","Older People Provider Services","Bradley Lodge Resource Centre","R4200"
"Wolverhampton City Council","http://opendatacommunities.org/id/metropolitan-district-council/wolverhampton","704657","James Lister & Sons Limited","0100/02838657","102.60","Protective Clothing","130226662","07/09/2018","Older People Provider Services","Reablement Team","R4200"
"Wolverhampton City Council","http://opendatacommunities.org/id/metropolitan-district-council/wolverhampton","704657","James Lister & Sons Limited","240/02839749","41.85","Equipment - Purchase","190504299","12/09/2018","Fleet Services","Fleet Management","R4000"
"Wolverhampton City Council","http://opendatacommunities.org/id/metropolitan-district-council/wolverhampton","704657","James Lister & Sons Limited","240/02837866","192.96","Equipment - Purchase","190501389","05/09/2018","Fleet Services","Fleet Management","R4000"
"Wolverhampton City Council","http://opendatacommunities.org/id/metropolitan-district-council/wolverhampton","704657","James Lister & Sons Limited","0100/02840279","32.95","Protective Clothing","130227033","05/09/2018","Fleet Services","Fleet Management","R4200"
"Wolverhampton City Council","http://opendatacommunities.org/id/metropolitan-district-council/wolverhampton","704657","James Lister & Sons Limited","0100/02843152","524.71","Protective Clothing","130227922","19/09/2018","Street Lighting","Street Lighting Maintenance","R4200"
"Wolverhampton City Council","http://opendatacommunities.org/id/metropolitan-district-council/wolverhampton","704657","James Lister & Sons Limited","0100/02843160","89.85","Protective Clothing","130227930","19/09/2018","Waste and Recycling Service","Waste Collection and Recycling Service - General","R4200"
"Wolverhampton City Council","http://opendatacommunities.org/id/metropolitan-district-council/wolverhampton","704657","James Lister & Sons Limited","0100/02843167","24.40","Protective Clothing","130227936","19/09/2018","Special Educational Needs","Special - Transport","R4200"
"Wolverhampton City Council","http://opendatacommunities.org/id/metropolitan-district-council/wolverhampton","704657","James Lister & Sons Limited","0100/02843167","24.00","Protective Clothing","130227936","19/09/2018","Special Educational Needs","Special - Transport","R4200"
"Wolverhampton City Council","http://opendatacommunities.org/id/metropolitan-district-council/wolverhampton","704657","James Lister & Sons Limited","0100/02838648","328.31","Protective Clothing","130226654","19/09/2018","Fleet Services","Fleet Management","R4200"
"Wolverhampton City Council","http://opendatacommunities.org/id/metropolitan-district-council/wolverhampton","704657","James Lister & Sons Limited","0100/02838658","265.38","Clothing / Uniforms","130226663","19/09/2018","Older People Provider Services","Bradley Lodge Resource Centre","R4201"
"Wolverhampton City Council","http://opendatacommunities.org/id/metropolitan-district-council/wolverhampton","704657","James Lister & Sons Limited","0100/02845573","619.98","Protective Clothing","130229045","28/09/2018","Cleaning","Cleaning of Buildings - General","R4200"
"Wolverhampton City Council","http://opendatacommunities.org/id/metropolitan-district-council/wolverhampton","704657","James Lister & Sons Limited","0100/02845563","-15.60","Protective Clothing","130229035","26/09/2018","Fleet Services","Fleet Management","R4200"
"Wolverhampton City Council","http://opendatacommunities.org/id/metropolitan-district-council/wolverhampton","704657","James Lister & Sons Limited","0100/02845571","15.60","Protective Clothing","130229043","26/09/2018","Fleet Services","Fleet Management","R4200"
"Wolverhampton City Council","http://opendatacommunities.org/id/metropolitan-district-council/wolverhampton","704657","James Lister & Sons Limited","0100/02836375","79.20","Protective Clothing","130226137","14/09/2018","Environmental Maintenance","Parks - Ranger Service","R4200"
"Wolverhampton City Council","http://opendatacommunities.org/id/metropolitan-district-council/wolverhampton","704657","James Lister & Sons Limited","0100/02836364","36,563.68","Protective Clothing","130226126","14/09/2018","Waste and Recycling Service","Waste Collection and Recycling Service - General","R4200"
"Wolverhampton City Council","http://opendatacommunities.org/id/metropolitan-district-council/wolverhampton","704657","James Lister & Sons Limited","0100/02840277","515.20","Protective Clothing","130227031","14/09/2018","Waste and Recycling Service","Waste Collection and Recycling Service - General","R4200"
"Wolverhampton City Council","http://opendatacommunities.org/id/metropolitan-district-council/wolverhampton","704657","James Lister & Sons Limited","240/02841001","370.50","Equipment - Purchase","190504300","12/09/2018","Fleet Services","Fleet Management","R4000"
"Wolverhampton City Council","http://opendatacommunities.org/id/metropolitan-district-council/wolverhampton","704657","James Lister & Sons Limited","0100/02841347","796.80","Protective Clothing","130227316","07/09/2018","Waste and Recycling Service","Waste Collection and Recycling Service - General","R4200"
"Wolverhampton City Council","http://opendatacommunities.org/id/metropolitan-district-council/wolverhampton","704657","James Lister & Sons Limited","240/02837865","75.95","Equipment - Purchase","190501388","05/09/2018","Fleet Services","Fleet Management","R4000"
"Wolverhampton City Council","http://opendatacommunities.org/id/metropolitan-district-council/wolverhampton","704657","James Lister & Sons Limited","240/02837864","140.15","Equipment - Purchase","190501387","05/09/2018","Fleet Services","Fleet Management","R4000"
"Wolverhampton City Council","http://opendatacommunities.org/id/metropolitan-district-council/wolverhampton","704657","James Lister & Sons Limited","0100/02840278","712.45","Protective Clothing","130227032","05/09/2018","Leisure Services","Aldersley Leisure Village","R4200"
"Wolverhampton City Council","http://opendatacommunities.org/id/metropolitan-district-council/wolverhampton","704659","James Wilkes Limited","17/0353/DFG","4,723.80","Grants paid out to other organisations","190511063","28/09/2018","-","Disabled Facilities Grants","C5011"
"Wolverhampton City Council","http://opendatacommunities.org/id/metropolitan-district-council/wolverhampton","704675","JCDECAUX UK Limited","SF/I096553","385.00","Marketing \ Non-staff advertising","130228285","14/09/2018","Healthy Life Expectancy","Healthy Life Expectancy","R4317"
"Wolverhampton City Council","http://opendatacommunities.org/id/metropolitan-district-council/wolverhampton","704676","JCM Seating Solutions Limited","19UI011918","1,927.00","Equipment - Purchase","130225685","05/09/2018","Independent Living Service","Independent Living Service","R4000"
"Wolverhampton City Council","http://opendatacommunities.org/id/metropolitan-district-council/wolverhampton","704690","Jenx Limited","213364","185.00","Equipment - Purchase","130225281","05/09/2018","Independent Living Service","Independent Living Service","R4000"
"Wolverhampton City Council","http://opendatacommunities.org/id/metropolitan-district-council/wolverhampton","704690","Jenx Limited","213364","164.00","Equipment - Purchase","130225281","05/09/2018","Independent Living Service","Independent Living Service","R4000"
"Wolverhampton City Council","http://opendatacommunities.org/id/metropolitan-district-council/wolverhampton","704690","Jenx Limited","213486","1,657.70","Equipment - Purchase","130225807","07/09/2018","Older People Provider Services","ILS Stores","R4000"
"Wolverhampton City Council","http://opendatacommunities.org/id/metropolitan-district-council/wolverhampton","704690","Jenx Limited","213521","1,927.70","Equipment - Purchase","130225923","12/09/2018","Older People Provider Services","ILS Stores","R4000"
"Wolverhampton City Council","http://opendatacommunities.org/id/metropolitan-district-council/wolverhampton","704722","Johal Dairies Limited","1170319","25.56","Provisions (Not for resale)","130227191","05/09/2018","Visitor Economy","Art Gallery Tea Room","R4101"
"Wolverhampton City Council","http://opendatacommunities.org/id/metropolitan-district-council/wolverhampton","704722","Johal Dairies Limited","1167145","91.76","Provisions (Not for resale)","130227185","05/09/2018","Visitor Economy","Bantock - Tea Rooms","R4101"
"Wolverhampton City Council","http://opendatacommunities.org/id/metropolitan-district-council/wolverhampton","704722","Johal Dairies Limited","1170326","40.07","Provisions (Resale)","130227196","26/09/2018","Older People Provider Services","Blakenhall Resource Centre","R4102"
"Wolverhampton City Council","http://opendatacommunities.org/id/metropolitan-district-council/wolverhampton","704722","Johal Dairies Limited","1176544","34.71","Provisions (Not for resale)","130227209","19/09/2018","Learning Disability Provider","Duke Street Bungalows","R4101"
"Wolverhampton City Council","http://opendatacommunities.org/id/metropolitan-district-council/wolverhampton","704722","Johal Dairies Limited","1176540","62.86","Provisions (Not for resale)","130227206","19/09/2018","Visitor Economy","Bantock - Tea Rooms","R4101"
"Wolverhampton City Council","http://opendatacommunities.org/id/metropolitan-district-council/wolverhampton","704722","Johal Dairies Limited","1170324","25.57","Provisions (Not for resale)","130227194","19/09/2018","Learning Disability Provider","Duke Street Bungalows","R4101"
"Wolverhampton City Council","http://opendatacommunities.org/id/metropolitan-district-council/wolverhampton","704722","Johal Dairies Limited","1173450","20.28","Provisions (Not for resale)","130227200","19/09/2018","Learning Disability Provider","Duke Street Bungalows","R4101"
"Wolverhampton City Council","http://opendatacommunities.org/id/metropolitan-district-council/wolverhampton","704722","Johal Dairies Limited","1167140","111.15","Provisions (Not for resale)","130227183","05/09/2018","Older People Provider Services","Bradley Lodge Resource Centre","R4101"
"Wolverhampton City Council","http://opendatacommunities.org/id/metropolitan-district-council/wolverhampton","704722","Johal Dairies Limited","5466072018","254.52","Provisions (Not for resale)","130227211","05/09/2018","Leisure Services","WV Active Catering","R4101"
"Wolverhampton City Council","http://opendatacommunities.org/id/metropolitan-district-council/wolverhampton","704722","Johal Dairies Limited","W1/3072018","12,194.73","School Milk","130227937","12/09/2018","Catering","Education Catering - General Overheads","R4104"
"Wolverhampton City Council","http://opendatacommunities.org/id/metropolitan-district-council/wolverhampton","704722","Johal Dairies Limited","1173452","34.71","Provisions (Not for resale)","130227202","19/09/2018","Learning Disability Provider","Duke Street Bungalows","R4101"
"Wolverhampton City Council","http://opendatacommunities.org/id/metropolitan-district-council/wolverhampton","704722","Johal Dairies Limited","1148014","109.86","Provisions (Not for resale)","130221340","19/09/2018","Older People Provider Services","Bradley Lodge Resource Centre","R4101"
"Wolverhampton City Council","http://opendatacommunities.org/id/metropolitan-district-council/wolverhampton","704722","Johal Dairies Limited","1170323","20.28","Provisions (Not for resale)","130227193","19/09/2018","Learning Disability Provider","Duke Street Bungalows","R4101"
"Wolverhampton City Council","http://opendatacommunities.org/id/metropolitan-district-council/wolverhampton","704722","Johal Dairies Limited","1167148","25.57","Provisions (Not for resale)","130227187","19/09/2018","Learning Disability Provider","Duke Street Bungalows","R4101"
"Wolverhampton City Council","http://opendatacommunities.org/id/metropolitan-district-council/wolverhampton","704722","Johal Dairies Limited","6525072018","95.00","Provisions (Not for resale)","130227213","05/09/2018","Leisure Services","WV Active Catering - Central","R4101"
"Wolverhampton City Council","http://opendatacommunities.org/id/metropolitan-district-council/wolverhampton","704722","Johal Dairies Limited","5935072018","264.74","Provisions (Not for resale)","130227212","05/09/2018","Leisure Services","Bert Williams Leisure Centre Caf�","R4101"
"Wolverhampton City Council","http://opendatacommunities.org/id/metropolitan-district-council/wolverhampton","704722","Johal Dairies Limited","5620082018","952.41","Provisions (Resale)","130229050","26/09/2018","Catering","Civic Centre Catering","R4102"
"Wolverhampton City Council","http://opendatacommunities.org/id/metropolitan-district-council/wolverhampton","704722","Johal Dairies Limited","1173443","90.08","Provisions (Not for resale)","130227197","19/09/2018","Older People Provider Services","Bradley Lodge Resource Centre","R4101"
"Wolverhampton City Council","http://opendatacommunities.org/id/metropolitan-district-council/wolverhampton","704722","Johal Dairies Limited","1176535","94.45","Provisions (Not for resale)","130227204","19/09/2018","Older People Provider Services","Bradley Lodge Resource Centre","R4101"
"Wolverhampton City Council","http://opendatacommunities.org/id/metropolitan-district-council/wolverhampton","704722","Johal Dairies Limited","1170325","34.71","Provisions (Not for resale)","130227195","19/09/2018","Learning Disability Provider","Duke Street Bungalows","R4101"
"Wolverhampton City Council","http://opendatacommunities.org/id/metropolitan-district-council/wolverhampton","704722","Johal Dairies Limited","1167147","20.28","Provisions (Not for resale)","130227186","19/09/2018","Learning Disability Provider","Duke Street Bungalows","R4101"
"Wolverhampton City Council","http://opendatacommunities.org/id/metropolitan-district-council/wolverhampton","704722","Johal Dairies Limited","1176543","25.57","Provisions (Not for resale)","130227208","19/09/2018","Learning Disability Provider","Duke Street Bungalows","R4101"
"Wolverhampton City Council","http://opendatacommunities.org/id/metropolitan-district-council/wolverhampton","704722","Johal Dairies Limited","1176538","11.40","Provisions (Not for resale)","130227205","19/09/2018","Visitor Economy","Art Gallery Tea Room","R4101"
"Wolverhampton City Council","http://opendatacommunities.org/id/metropolitan-district-council/wolverhampton","704722","Johal Dairies Limited","1173448","112.86","Provisions (Not for resale)","130227199","12/09/2018","Visitor Economy","Bantock - Tea Rooms","R4101"
"Wolverhampton City Council","http://opendatacommunities.org/id/metropolitan-district-council/wolverhampton","704722","Johal Dairies Limited","1173446","35.23","Provisions (Not for resale)","130227198","12/09/2018","Visitor Economy","Art Gallery Tea Room","R4101"
"Wolverhampton City Council","http://opendatacommunities.org/id/metropolitan-district-council/wolverhampton","704722","Johal Dairies Limited","1167143","11.40","Provisions (Not for resale)","130227184","05/09/2018","Visitor Economy","Art Gallery Tea Room","R4101"
"Wolverhampton City Council","http://opendatacommunities.org/id/metropolitan-district-council/wolverhampton","704722","Johal Dairies Limited","1170321","75.62","Provisions (Not for resale)","130227192","05/09/2018","Visitor Economy","Bantock - Tea Rooms","R4101"
"Wolverhampton City Council","http://opendatacommunities.org/id/metropolitan-district-council/wolverhampton","704722","Johal Dairies Limited","1167150","8.97","Provisions (Resale)","130227189","26/09/2018","Older People Provider Services","Blakenhall Resource Centre","R4102"
"Wolverhampton City Council","http://opendatacommunities.org/id/metropolitan-district-council/wolverhampton","704722","Johal Dairies Limited","1170316","43.92","Provisions (Not for resale)","130227190","19/09/2018","Older People Provider Services","Bradley Lodge Resource Centre","R4101"
"Wolverhampton City Council","http://opendatacommunities.org/id/metropolitan-district-council/wolverhampton","704722","Johal Dairies Limited","1173451","25.57","Provisions (Not for resale)","130227201","19/09/2018","Learning Disability Provider","Duke Street Bungalows","R4101"
"Wolverhampton City Council","http://opendatacommunities.org/id/metropolitan-district-council/wolverhampton","704722","Johal Dairies Limited","1176542","20.28","Provisions (Not for resale)","130227207","19/09/2018","Learning Disability Provider","Duke Street Bungalows","R4101"
"Wolverhampton City Council","http://opendatacommunities.org/id/metropolitan-district-council/wolverhampton","704722","Johal Dairies Limited","1167149","34.71","Provisions (Not for resale)","130227188","19/09/2018","Learning Disability Provider","Duke Street Bungalows","R4101"
"Wolverhampton City Council","http://opendatacommunities.org/id/metropolitan-district-council/wolverhampton","704748","Johnston Sweepers Limited","65292373","142.00","Services - Professional Fees","190508093","19/09/2018","Fleet Services","Fleet Management","R4400"
"Wolverhampton City Council","http://opendatacommunities.org/id/metropolitan-district-council/wolverhampton","704748","Johnston Sweepers Limited","65292373","3.00","Services - Professional Fees","190508093","19/09/2018","Fleet Services","Fleet Management","R4400"
"Wolverhampton City Council","http://opendatacommunities.org/id/metropolitan-district-council/wolverhampton","704748","Johnston Sweepers Limited","65292373","30.00","Services - Professional Fees","190508093","19/09/2018","Fleet Services","Fleet Management","R4400"
"Wolverhampton City Council","http://opendatacommunities.org/id/metropolitan-district-council/wolverhampton","704748","Johnston Sweepers Limited","61651067","35.68","Equipment - Purchase","190504303","12/09/2018","Fleet Services","Fleet Management","R4000"
"Wolverhampton City Council","http://opendatacommunities.org/id/metropolitan-district-council/wolverhampton","704748","Johnston Sweepers Limited","61658638","53.26","Equipment - Purchase","190505037","14/09/2018","Fleet Services","Fleet Management","R4000"
"Wolverhampton City Council","http://opendatacommunities.org/id/metropolitan-district-council/wolverhampton","704748","Johnston Sweepers Limited","61637453","241.79","Equipment - Purchase","190503203","07/09/2018","Fleet Services","Fleet Management","R4000"
"Wolverhampton City Council","http://opendatacommunities.org/id/metropolitan-district-council/wolverhampton","704748","Johnston Sweepers Limited","61656703","32.84","Equipment - Purchase","190502340","05/09/2018","Fleet Services","Fleet Management","R4000"
"Wolverhampton City Council","http://opendatacommunities.org/id/metropolitan-district-council/wolverhampton","704748","Johnston Sweepers Limited","61656703","4.29","Equipment - Purchase","190502340","05/09/2018","Fleet Services","Fleet Management","R4000"
"Wolverhampton City Council","http://opendatacommunities.org/id/metropolitan-district-council/wolverhampton","704748","Johnston Sweepers Limited","61637453","31.93","Equipment - Purchase","190503203","07/09/2018","Fleet Services","Fleet Management","R4000"
"Wolverhampton City Council","http://opendatacommunities.org/id/metropolitan-district-council/wolverhampton","704748","Johnston Sweepers Limited","61651070","51.48","Equipment - Purchase","190504304","12/09/2018","Fleet Services","Fleet Management","R4000"
"Wolverhampton City Council","http://opendatacommunities.org/id/metropolitan-district-council/wolverhampton","704748","Johnston Sweepers Limited","61660570","659.87","Equipment - Purchase","190510182","26/09/2018","Fleet Services","Fleet Management","R4000"
"Wolverhampton City Council","http://opendatacommunities.org/id/metropolitan-district-council/wolverhampton","704748","Johnston Sweepers Limited","61659217","389.88","Equipment - Purchase","190505038","14/09/2018","Fleet Services","Fleet Management","R4000"
"Wolverhampton City Council","http://opendatacommunities.org/id/metropolitan-district-council/wolverhampton","704748","Johnston Sweepers Limited","61655573","56.61","Equipment - Purchase","190502337","05/09/2018","Fleet Services","Fleet Management","R4000"
"Wolverhampton City Council","http://opendatacommunities.org/id/metropolitan-district-council/wolverhampton","704748","Johnston Sweepers Limited","61655709","30.92","Equipment - Purchase","190504305","12/09/2018","Fleet Services","Fleet Management","R4000"
"Wolverhampton City Council","http://opendatacommunities.org/id/metropolitan-district-council/wolverhampton","704748","Johnston Sweepers Limited","61656495","169.26","Equipment - Purchase","190502338","05/09/2018","Fleet Services","Fleet Management","R4000"
"Wolverhampton City Council","http://opendatacommunities.org/id/metropolitan-district-council/wolverhampton","704748","Johnston Sweepers Limited","61660571","204.21","Equipment - Purchase","190510183","26/09/2018","Fleet Services","Fleet Management","R4000"
"Wolverhampton City Council","http://opendatacommunities.org/id/metropolitan-district-council/wolverhampton","704748","Johnston Sweepers Limited","61659577","9.76","Equipment - Purchase","190505039","14/09/2018","Fleet Services","Fleet Management","R4000"
"Wolverhampton City Council","http://opendatacommunities.org/id/metropolitan-district-council/wolverhampton","704748","Johnston Sweepers Limited","61659577","6.61","Equipment - Purchase","190505039","14/09/2018","Fleet Services","Fleet Management","R4000"
"Wolverhampton City Council","http://opendatacommunities.org/id/metropolitan-district-council/wolverhampton","704748","Johnston Sweepers Limited","61659577","126.50","Equipment - Purchase","190505039","14/09/2018","Fleet Services","Fleet Management","R4000"
"Wolverhampton City Council","http://opendatacommunities.org/id/metropolitan-district-council/wolverhampton","704748","Johnston Sweepers Limited","61659577","0.91","Equipment - Purchase","190505039","14/09/2018","Fleet Services","Fleet Management","R4000"
"Wolverhampton City Council","http://opendatacommunities.org/id/metropolitan-district-council/wolverhampton","704748","Johnston Sweepers Limited","61659577","18.27","Equipment - Purchase","190505039","14/09/2018","Fleet Services","Fleet Management","R4000"
"Wolverhampton City Council","http://opendatacommunities.org/id/metropolitan-district-council/wolverhampton","704748","Johnston Sweepers Limited","61659577","33.62","Equipment - Purchase","190505039","14/09/2018","Fleet Services","Fleet Management","R4000"
"Wolverhampton City Council","http://opendatacommunities.org/id/metropolitan-district-council/wolverhampton","704748","Johnston Sweepers Limited","61659577","177.46","Equipment - Purchase","190505039","14/09/2018","Fleet Services","Fleet Management","R4000"
"Wolverhampton City Council","http://opendatacommunities.org/id/metropolitan-district-council/wolverhampton","704748","Johnston Sweepers Limited","61659577","76.04","Equipment - Purchase","190505039","14/09/2018","Fleet Services","Fleet Management","R4000"
"Wolverhampton City Council","http://opendatacommunities.org/id/metropolitan-district-council/wolverhampton","704748","Johnston Sweepers Limited","61657292","14.69","Equipment - Purchase","190504306","12/09/2018","Fleet Services","Fleet Management","R4000"
"Wolverhampton City Council","http://opendatacommunities.org/id/metropolitan-district-council/wolverhampton","704748","Johnston Sweepers Limited","61657292","56.61","Equipment - Purchase","190504306","12/09/2018","Fleet Services","Fleet Management","R4000"
"Wolverhampton City Council","http://opendatacommunities.org/id/metropolitan-district-council/wolverhampton","704748","Johnston Sweepers Limited","61645962","247.92","Equipment - Purchase","190510181","26/09/2018","Fleet Services","Fleet Management","R4000"
"Wolverhampton City Council","http://opendatacommunities.org/id/metropolitan-district-council/wolverhampton","704748","Johnston Sweepers Limited","61645962","49.40","Equipment - Purchase","190510181","26/09/2018","Fleet Services","Fleet Management","R4000"
"Wolverhampton City Council","http://opendatacommunities.org/id/metropolitan-district-council/wolverhampton","704748","Johnston Sweepers Limited","61645962","29.64","Equipment - Purchase","190510181","26/09/2018","Fleet Services","Fleet Management","R4000"
"Wolverhampton City Council","http://opendatacommunities.org/id/metropolitan-district-council/wolverhampton","704748","Johnston Sweepers Limited","61645962","428.85","Equipment - Purchase","190510181","26/09/2018","Fleet Services","Fleet Management","R4000"
"Wolverhampton City Council","http://opendatacommunities.org/id/metropolitan-district-council/wolverhampton","704748","Johnston Sweepers Limited","61645962","204.54","Equipment - Purchase","190510181","26/09/2018","Fleet Services","Fleet Management","R4000"
"Wolverhampton City Council","http://opendatacommunities.org/id/metropolitan-district-council/wolverhampton","704748","Johnston Sweepers Limited","61645962","96.02","Equipment - Purchase","190510181","26/09/2018","Fleet Services","Fleet Management","R4000"
"Wolverhampton City Council","http://opendatacommunities.org/id/metropolitan-district-council/wolverhampton","704748","Johnston Sweepers Limited","61645962","221.52","Equipment - Purchase","190510181","26/09/2018","Fleet Services","Fleet Management","R4000"
"Wolverhampton City Council","http://opendatacommunities.org/id/metropolitan-district-council/wolverhampton","704748","Johnston Sweepers Limited","61654378","1,793.85","Equipment - Purchase","190502336","05/09/2018","Fleet Services","Fleet Management","R4000"
"Wolverhampton City Council","http://opendatacommunities.org/id/metropolitan-district-council/wolverhampton","704748","Johnston Sweepers Limited","61656498","562.72","Equipment - Purchase","190502339","05/09/2018","Fleet Services","Fleet Management","R4000"
"Wolverhampton City Council","http://opendatacommunities.org/id/metropolitan-district-council/wolverhampton","704754","Jones Skips (Wolverhampton) Limited","53106","4,177.44","TPP - Waste Disposal","130228449","14/09/2018","Environmental Maintenance","Ground Maintenance East","R5003"
"Wolverhampton City Council","http://opendatacommunities.org/id/metropolitan-district-council/wolverhampton","704754","Jones Skips (Wolverhampton) Limited","54033","175.00","TPP - Waste Disposal","130228450","19/09/2018","Early Intervention","EIP Locality 1 - Eastfields","R5003"
"Wolverhampton City Council","http://opendatacommunities.org/id/metropolitan-district-council/wolverhampton","704754","Jones Skips (Wolverhampton) Limited","49721","175.00","Section 17","130227320","26/09/2018","Child Protection","CIN/CP Social Work Unit - Area 6","R6403"
"Wolverhampton City Council","http://opendatacommunities.org/id/metropolitan-district-council/wolverhampton","704754","Jones Skips (Wolverhampton) Limited","51771","3,892.32","TPP - Waste Disposal","130227573","19/09/2018","Environmental Maintenance","Ground Maintenance East","R5003"
"Wolverhampton City Council","http://opendatacommunities.org/id/metropolitan-district-council/wolverhampton","704756","Jones Transmissions","6512","473.00","Services - Professional Fees","190508092","19/09/2018","Fleet Services","Fleet Management","R4400"
"Wolverhampton City Council","http://opendatacommunities.org/id/metropolitan-district-council/wolverhampton","704756","Jones Transmissions","6507","113.40","Services - Professional Fees","190504307","12/09/2018","Fleet Services","Fleet Management","R4400"
"Wolverhampton City Council","http://opendatacommunities.org/id/metropolitan-district-council/wolverhampton","704756","Jones Transmissions","6507","473.00","Services - Professional Fees","190504307","12/09/2018","Fleet Services","Fleet Management","R4400"
"Wolverhampton City Council","http://opendatacommunities.org/id/metropolitan-district-council/wolverhampton","704802","K Thornton","17A","150.00","Services - Supplies and Services to service users","130229267","26/09/2018","Early Intervention","EIP Locality 7 � Low Hill","R4408"
"Wolverhampton City Council","http://opendatacommunities.org/id/metropolitan-district-council/wolverhampton","704842","Keith Carrier & Son","0007738","376.21","R&M - Departmental planned (external)","130227809","12/09/2018","Facilities Management","Civic Centre","R2001"
"Wolverhampton City Council","http://opendatacommunities.org/id/metropolitan-district-council/wolverhampton","704842","Keith Carrier & Son","0007717","240.00","Services - Security","130229052","21/09/2018","Estates and Valuations","Other Premises ; Other","R4405"
"Wolverhampton City Council","http://opendatacommunities.org/id/metropolitan-district-council/wolverhampton","704842","Keith Carrier & Son","26","344.10","Services - Security","130229482","28/09/2018","Facilities Management","Civic Centre","R4405"
"Wolverhampton City Council","http://opendatacommunities.org/id/metropolitan-district-council/wolverhampton","704842","Keith Carrier & Son","0007715","194.80","Services - Security","130229051","26/09/2018","Maintenance Programme","Civic Centre Repairs & Maintenance","R4405"
"Wolverhampton City Council","http://opendatacommunities.org/id/metropolitan-district-council/wolverhampton","704846","Kellogg�S Asa Award Scheme(Swim England)","SWINV003500","1,482.00","Materials for resale","130228451","14/09/2018","Leisure Services","Bert Williams Leisure Centre","R4008"
"Wolverhampton City Council","http://opendatacommunities.org/id/metropolitan-district-council/wolverhampton","704846","Kellogg�S Asa Award Scheme(Swim England)","SWINV003500","20.00","Comms - Postage","130228451","14/09/2018","Leisure Services","Bert Williams Leisure Centre","R4503"
"Wolverhampton City Council","http://opendatacommunities.org/id/metropolitan-district-council/wolverhampton","704846","Kellogg�S Asa Award Scheme(Swim England)","SWINV009433","344.60","Materials for resale","130228452","14/09/2018","Leisure Services","Bert Williams Leisure Centre","R4008"
"Wolverhampton City Council","http://opendatacommunities.org/id/metropolitan-district-council/wolverhampton","704847","Keltic Clothing Limited","146863","927.65","Clothing / Uniforms","130226531","19/09/2018","Transportation","School Crossing Patrol","R4201"
"Wolverhampton City Council","http://opendatacommunities.org/id/metropolitan-district-council/wolverhampton","704847","Keltic Clothing Limited","146863","344.75","Protective Clothing","130226531","19/09/2018","Transportation","School Crossing Patrol","R4200"
"Wolverhampton City Council","http://opendatacommunities.org/id/metropolitan-district-council/wolverhampton","704853","Kent County Council","900072327","12,051.87","Client Transport - SEN","130227574","12/09/2018","Special Educational Needs","Special - Transport","R3043"
"Wolverhampton City Council","http://opendatacommunities.org/id/metropolitan-district-council/wolverhampton","704855","Kenton Research Limited","OP/I025380","796.00","Computing - Internet","130227939","12/09/2018","ICTS","Strategic ICTS (ICT Service Budget)","R4537"
"Wolverhampton City Council","http://opendatacommunities.org/id/metropolitan-district-council/wolverhampton","704855","Kenton Research Limited","OP/I025471","720.00","Computing - Internet","130228548","21/09/2018","ICTS","Strategic ICTS (ICT Service Budget)","R4537"
"Wolverhampton City Council","http://opendatacommunities.org/id/metropolitan-district-council/wolverhampton","704855","Kenton Research Limited","OP/I025391","500.00","Computing - Internet","130227946","12/09/2018","ICTS","Strategic ICTS (ICT Service Budget)","R4537"
"Wolverhampton City Council","http://opendatacommunities.org/id/metropolitan-district-council/wolverhampton","704855","Kenton Research Limited","OP/I024998","420.00","Computing - Internet","130228456","19/09/2018","ICTS","Strategic ICTS (ICT Service Budget)","R4537"
"Wolverhampton City Council","http://opendatacommunities.org/id/metropolitan-district-council/wolverhampton","704855","Kenton Research Limited","OP/I024401","782.50","Computing - Internet","130228453","19/09/2018","ICTS","Strategic ICTS (ICT Service Budget)","R4537"
"Wolverhampton City Council","http://opendatacommunities.org/id/metropolitan-district-council/wolverhampton","704855","Kenton Research Limited","OP/I025215","2,900.00","Computing - Internet","130228463","19/09/2018","ICTS","Strategic ICTS (ICT Service Budget)","R4537"
"Wolverhampton City Council","http://opendatacommunities.org/id/metropolitan-district-council/wolverhampton","704855","Kenton Research Limited","OP/I025008","782.50","Computing - Internet","130228460","19/09/2018","ICTS","Strategic ICTS (ICT Service Budget)","R4537"
"Wolverhampton City Council","http://opendatacommunities.org/id/metropolitan-district-council/wolverhampton","704855","Kenton Research Limited","OP/I025006","720.00","Computing - Internet","130228458","19/09/2018","ICTS","Strategic ICTS (ICT Service Budget)","R4537"
"Wolverhampton City Council","http://opendatacommunities.org/id/metropolitan-district-council/wolverhampton","704855","Kenton Research Limited","OP/I025392","720.00","Computing - Internet","130228544","19/09/2018","ICTS","Strategic ICTS (ICT Service Budget)","R4537"
"Wolverhampton City Council","http://opendatacommunities.org/id/metropolitan-district-council/wolverhampton","704855","Kenton Research Limited","OP/I025217","2,900.00","Computing - Internet","130228124","14/09/2018","ICTS","Strategic ICTS (ICT Service Budget)","R4537"
"Wolverhampton City Council","http://opendatacommunities.org/id/metropolitan-district-council/wolverhampton","704855","Kenton Research Limited","OP/I025213","720.00","Computing - Internet","130228123","14/09/2018","ICTS","Strategic ICTS (ICT Service Budget)","R4537"
"Wolverhampton City Council","http://opendatacommunities.org/id/metropolitan-district-council/wolverhampton","704855","Kenton Research Limited","OP/I025001","1,518.00","Computing - Internet","130228115","14/09/2018","ICTS","Strategic ICTS (ICT Service Budget)","R4537"
"Wolverhampton City Council","http://opendatacommunities.org/id/metropolitan-district-council/wolverhampton","704855","Kenton Research Limited","OP/I025000","7,245.50","Computing - Internet","130228114","14/09/2018","ICTS","Strategic ICTS (ICT Service Budget)","R4537"
"Wolverhampton City Council","http://opendatacommunities.org/id/metropolitan-district-council/wolverhampton","704855","Kenton Research Limited","OP/I025520","720.00","Computing - Internet","130227813","14/09/2018","ICTS","Strategic ICTS (ICT Service Budget)","R4537"
"Wolverhampton City Council","http://opendatacommunities.org/id/metropolitan-district-council/wolverhampton","704855","Kenton Research Limited","OP/I025518","1,440.00","Computing - Internet","130227811","14/09/2018","ICTS","Strategic ICTS (ICT Service Budget)","R4537"
"Wolverhampton City Council","http://opendatacommunities.org/id/metropolitan-district-council/wolverhampton","704855","Kenton Research Limited","OP/I024780","412.50","Computing - Internet","130228102","14/09/2018","ICTS","Strategic ICTS (ICT Service Budget)","R4537"
"Wolverhampton City Council","http://opendatacommunities.org/id/metropolitan-district-council/wolverhampton","704855","Kenton Research Limited","OP/I024781","492.50","Computing - Internet","130228103","14/09/2018","ICTS","Strategic ICTS (ICT Service Budget)","R4537"
"Wolverhampton City Council","http://opendatacommunities.org/id/metropolitan-district-council/wolverhampton","704855","Kenton Research Limited","OP/I024783","517.50","Computing - Internet","130228105","14/09/2018","ICTS","Strategic ICTS (ICT Service Budget)","R4537"
"Wolverhampton City Council","http://opendatacommunities.org/id/metropolitan-district-council/wolverhampton","704855","Kenton Research Limited","OP/I025002","672.50","Computing - Internet","130228116","14/09/2018","ICTS","Strategic ICTS (ICT Service Budget)","R4537"
"Wolverhampton City Council","http://opendatacommunities.org/id/metropolitan-district-council/wolverhampton","704855","Kenton Research Limited","OP/I025147","612.50","Computing - Internet","130228121","14/09/2018","ICTS","Strategic ICTS (ICT Service Budget)","R4537"
"Wolverhampton City Council","http://opendatacommunities.org/id/metropolitan-district-council/wolverhampton","704855","Kenton Research Limited","OP/I025154","415.00","Computing - Internet","130228122","14/09/2018","ICTS","Strategic ICTS (ICT Service Budget)","R4537"
"Wolverhampton City Council","http://opendatacommunities.org/id/metropolitan-district-council/wolverhampton","704855","Kenton Research Limited","OP/I025248","440.00","Computing - Internet","130228129","14/09/2018","ICTS","Strategic ICTS (ICT Service Budget)","R4537"
"Wolverhampton City Council","http://opendatacommunities.org/id/metropolitan-district-council/wolverhampton","704855","Kenton Research Limited","OP/I024779","440.00","Computing - Internet","130228101","14/09/2018","ICTS","Strategic ICTS (ICT Service Budget)","R4537"
"Wolverhampton City Council","http://opendatacommunities.org/id/metropolitan-district-council/wolverhampton","704855","Kenton Research Limited","OP/I024999","782.50","Computing - Internet","130228113","14/09/2018","ICTS","Strategic ICTS (ICT Service Budget)","R4537"
"Wolverhampton City Council","http://opendatacommunities.org/id/metropolitan-district-council/wolverhampton","704855","Kenton Research Limited","OP/I025388","672.50","Computing - Internet","130227944","12/09/2018","ICTS","Strategic ICTS (ICT Service Budget)","R4537"
"Wolverhampton City Council","http://opendatacommunities.org/id/metropolitan-district-council/wolverhampton","704855","Kenton Research Limited","OP/I025252","4,522.50","Computing - Internet","130228133","14/09/2018","ICTS","Strategic ICTS (ICT Service Budget)","R4537"
"Wolverhampton City Council","http://opendatacommunities.org/id/metropolitan-district-council/wolverhampton","704855","Kenton Research Limited","OP/I025220","7,543.23","Computing - Internet","130228125","14/09/2018","ICTS","Strategic ICTS (ICT Service Budget)","R4537"
"Wolverhampton City Council","http://opendatacommunities.org/id/metropolitan-district-council/wolverhampton","704855","Kenton Research Limited","OP/I024997","1,568.75","Computing - Internet","130228112","14/09/2018","ICTS","Strategic ICTS (ICT Service Budget)","R4537"
"Wolverhampton City Council","http://opendatacommunities.org/id/metropolitan-district-council/wolverhampton","704855","Kenton Research Limited","OP/I024993","720.00","Computing - Internet","130228109","14/09/2018","ICTS","Strategic ICTS (ICT Service Budget)","R4537"
"Wolverhampton City Council","http://opendatacommunities.org/id/metropolitan-district-council/wolverhampton","704855","Kenton Research Limited","OP/I024994","796.00","Computing - Internet","130228110","14/09/2018","ICTS","Strategic ICTS (ICT Service Budget)","R4537"
"Wolverhampton City Council","http://opendatacommunities.org/id/metropolitan-district-council/wolverhampton","704855","Kenton Research Limited","OP/I025395","440.00","Computing - Internet","130227947","12/09/2018","ICTS","Strategic ICTS (ICT Service Budget)","R4537"
"Wolverhampton City Council","http://opendatacommunities.org/id/metropolitan-district-council/wolverhampton","704855","Kenton Research Limited","OP/I025396","1,262.50","Computing - Internet","130227948","12/09/2018","ICTS","Strategic ICTS (ICT Service Budget)","R4537"
"Wolverhampton City Council","http://opendatacommunities.org/id/metropolitan-district-council/wolverhampton","704855","Kenton Research Limited","OP/I025393","420.00","Computing - Internet","130228545","19/09/2018","ICTS","Strategic ICTS (ICT Service Budget)","R4537"
"Wolverhampton City Council","http://opendatacommunities.org/id/metropolitan-district-council/wolverhampton","704855","Kenton Research Limited","OP/I025397","782.50","Computing - Internet","130228547","19/09/2018","ICTS","Strategic ICTS (ICT Service Budget)","R4537"
"Wolverhampton City Council","http://opendatacommunities.org/id/metropolitan-district-council/wolverhampton","704855","Kenton Research Limited","OP/I025389","720.00","Computing - Internet","130228543","19/09/2018","ICTS","Strategic ICTS (ICT Service Budget)","R4537"
"Wolverhampton City Council","http://opendatacommunities.org/id/metropolitan-district-council/wolverhampton","704855","Kenton Research Limited","OP/I025003","720.00","Computing - Internet","130228457","19/09/2018","ICTS","Strategic ICTS (ICT Service Budget)","R4537"
"Wolverhampton City Council","http://opendatacommunities.org/id/metropolitan-district-council/wolverhampton","704855","Kenton Research Limited","OP/I025214","2,900.00","Computing - Internet","130228462","19/09/2018","ICTS","Strategic ICTS (ICT Service Budget)","R4537"
"Wolverhampton City Council","http://opendatacommunities.org/id/metropolitan-district-council/wolverhampton","704855","Kenton Research Limited","OP/I025219","2,900.00","Computing - Internet","130228466","19/09/2018","ICTS","Strategic ICTS (ICT Service Budget)","R4537"
"Wolverhampton City Council","http://opendatacommunities.org/id/metropolitan-district-council/wolverhampton","704855","Kenton Research Limited","OP/I025384","420.00","Computing - Internet","130228542","19/09/2018","ICTS","Strategic ICTS (ICT Service Budget)","R4537"
"Wolverhampton City Council","http://opendatacommunities.org/id/metropolitan-district-council/wolverhampton","704855","Kenton Research Limited","OP/I025394","782.50","Computing - Internet","130228546","19/09/2018","ICTS","Strategic ICTS (ICT Service Budget)","R4537"
"Wolverhampton City Council","http://opendatacommunities.org/id/metropolitan-district-council/wolverhampton","704855","Kenton Research Limited","OP/I025383","720.00","Computing - Internet","130228541","19/09/2018","ICTS","Strategic ICTS (ICT Service Budget)","R4537"
"Wolverhampton City Council","http://opendatacommunities.org/id/metropolitan-district-council/wolverhampton","704855","Kenton Research Limited","OP/I024995","720.00","Computing - Internet","130228455","19/09/2018","ICTS","Strategic ICTS (ICT Service Budget)","R4537"
"Wolverhampton City Council","http://opendatacommunities.org/id/metropolitan-district-council/wolverhampton","704855","Kenton Research Limited","OP/I025218","2,900.00","Computing - Internet","130228465","19/09/2018","ICTS","Strategic ICTS (ICT Service Budget)","R4537"
"Wolverhampton City Council","http://opendatacommunities.org/id/metropolitan-district-council/wolverhampton","704855","Kenton Research Limited","OP/I025268","6,798.75","Computing - Internet","130228134","14/09/2018","ICTS","Strategic ICTS (ICT Service Budget)","R4537"
"Wolverhampton City Council","http://opendatacommunities.org/id/metropolitan-district-council/wolverhampton","704855","Kenton Research Limited","OP/I024784","4,522.50","Computing - Internet","130228106","14/09/2018","ICTS","Strategic ICTS (ICT Service Budget)","R4537"
"Wolverhampton City Council","http://opendatacommunities.org/id/metropolitan-district-council/wolverhampton","704855","Kenton Research Limited","OP/I024778","720.00","Computing - Internet","130228100","14/09/2018","ICTS","Strategic ICTS (ICT Service Budget)","R4537"
"Wolverhampton City Council","http://opendatacommunities.org/id/metropolitan-district-council/wolverhampton","704855","Kenton Research Limited","OP/I025517","1,568.75","Computing - Internet","130227810","14/09/2018","ICTS","Strategic ICTS (ICT Service Budget)","R4537"
"Wolverhampton City Council","http://opendatacommunities.org/id/metropolitan-district-council/wolverhampton","704855","Kenton Research Limited","OP/I025362","720.00","Computing - Internet","130228135","14/09/2018","Housing","Wholly Owned Company - Operations","R4537"
"Wolverhampton City Council","http://opendatacommunities.org/id/metropolitan-district-council/wolverhampton","704855","Kenton Research Limited","OP/I024839","190.00","Computing - Internet","130228108","14/09/2018","ICTS","Strategic ICTS (ICT Service Budget)","R4537"
"Wolverhampton City Council","http://opendatacommunities.org/id/metropolitan-district-council/wolverhampton","704855","Kenton Research Limited","OP/I025379","720.00","Computing - Internet","130227938","12/09/2018","ICTS","Strategic ICTS (ICT Service Budget)","R4537"
"Wolverhampton City Council","http://opendatacommunities.org/id/metropolitan-district-council/wolverhampton","704855","Kenton Research Limited","OP/I025382","420.00","Computing - Internet","130227940","12/09/2018","ICTS","Strategic ICTS (ICT Service Budget)","R4537"
"Wolverhampton City Council","http://opendatacommunities.org/id/metropolitan-district-council/wolverhampton","704855","Kenton Research Limited","OP/I025387","1,518.00","Computing - Internet","130227943","12/09/2018","ICTS","Strategic ICTS (ICT Service Budget)","R4537"
"Wolverhampton City Council","http://opendatacommunities.org/id/metropolitan-district-council/wolverhampton","704855","Kenton Research Limited","OP/I025250","495.50","Computing - Internet","130228131","14/09/2018","ICTS","Strategic ICTS (ICT Service Budget)","R4537"
"Wolverhampton City Council","http://opendatacommunities.org/id/metropolitan-district-council/wolverhampton","704855","Kenton Research Limited","OP/I025246","900.00","Computing - Internet","130228127","14/09/2018","ICTS","Strategic ICTS (ICT Service Budget)","R4537"
"Wolverhampton City Council","http://opendatacommunities.org/id/metropolitan-district-council/wolverhampton","704855","Kenton Research Limited","OP/I025004","481.25","Computing - Internet","130228117","14/09/2018","ICTS","Strategic ICTS (ICT Service Budget)","R4537"
"Wolverhampton City Council","http://opendatacommunities.org/id/metropolitan-district-council/wolverhampton","704855","Kenton Research Limited","OP/I025009","440.00","Computing - Internet","130228119","14/09/2018","ICTS","Strategic ICTS (ICT Service Budget)","R4537"
"Wolverhampton City Council","http://opendatacommunities.org/id/metropolitan-district-council/wolverhampton","704855","Kenton Research Limited","OP/I025519","415.00","Computing - Internet","130227812","14/09/2018","ICTS","Strategic ICTS (ICT Service Budget)","R4537"
"Wolverhampton City Council","http://opendatacommunities.org/id/metropolitan-district-council/wolverhampton","704855","Kenton Research Limited","OP/I025385","782.50","Computing - Internet","130227941","12/09/2018","ICTS","Strategic ICTS (ICT Service Budget)","R4537"
"Wolverhampton City Council","http://opendatacommunities.org/id/metropolitan-district-council/wolverhampton","704855","Kenton Research Limited","OP/I025386","7,245.50","Computing - Internet","130227942","12/09/2018","ICTS","Strategic ICTS (ICT Service Budget)","R4537"
"Wolverhampton City Council","http://opendatacommunities.org/id/metropolitan-district-council/wolverhampton","704855","Kenton Research Limited","OP/I025390","481.25","Computing - Internet","130227945","12/09/2018","ICTS","Strategic ICTS (ICT Service Budget)","R4537"
"Wolverhampton City Council","http://opendatacommunities.org/id/metropolitan-district-council/wolverhampton","704855","Kenton Research Limited","OP/I025247","720.00","Computing - Internet","130228128","14/09/2018","ICTS","Strategic ICTS (ICT Service Budget)","R4537"
"Wolverhampton City Council","http://opendatacommunities.org/id/metropolitan-district-council/wolverhampton","704855","Kenton Research Limited","OP/I025221","6,798.75","Computing - Internet","130228126","14/09/2018","ICTS","Strategic ICTS (ICT Service Budget)","R4537"
"Wolverhampton City Council","http://opendatacommunities.org/id/metropolitan-district-council/wolverhampton","704855","Kenton Research Limited","OP/I024782","1,440.00","Computing - Internet","130228104","14/09/2018","ICTS","Strategic ICTS (ICT Service Budget)","R4537"
"Wolverhampton City Council","http://opendatacommunities.org/id/metropolitan-district-council/wolverhampton","704855","Kenton Research Limited","OP/I025010","1,262.50","Computing - Internet","130228120","14/09/2018","ICTS","Strategic ICTS (ICT Service Budget)","R4537"
"Wolverhampton City Council","http://opendatacommunities.org/id/metropolitan-district-council/wolverhampton","704855","Kenton Research Limited","OP/I025470","720.00","Computing - Internet","130227949","14/09/2018","ICTS","Strategic ICTS (ICT Service Budget)","R4537"
"Wolverhampton City Council","http://opendatacommunities.org/id/metropolitan-district-council/wolverhampton","704855","Kenton Research Limited","OP/I024838","204.36","Computing - Internet","130228107","14/09/2018","ICTS","Strategic ICTS (ICT Service Budget)","R4537"
"Wolverhampton City Council","http://opendatacommunities.org/id/metropolitan-district-council/wolverhampton","704855","Kenton Research Limited","OP/I025216","2,900.00","Computing - Internet","130228464","19/09/2018","ICTS","Strategic ICTS (ICT Service Budget)","R4537"
"Wolverhampton City Council","http://opendatacommunities.org/id/metropolitan-district-council/wolverhampton","704855","Kenton Research Limited","OP/I025007","420.00","Computing - Internet","130228459","19/09/2018","ICTS","Strategic ICTS (ICT Service Budget)","R4537"
"Wolverhampton City Council","http://opendatacommunities.org/id/metropolitan-district-council/wolverhampton","704855","Kenton Research Limited","OP/I024785","720.00","Computing - Internet","130228454","19/09/2018","ICTS","Strategic ICTS (ICT Service Budget)","R4537"
"Wolverhampton City Council","http://opendatacommunities.org/id/metropolitan-district-council/wolverhampton","704855","Kenton Research Limited","OP/I025011","782.50","Computing - Internet","130228461","19/09/2018","ICTS","Strategic ICTS (ICT Service Budget)","R4537"
"Wolverhampton City Council","http://opendatacommunities.org/id/metropolitan-district-council/wolverhampton","704855","Kenton Research Limited","OP/I025381","720.00","Computing - Internet","130228540","19/09/2018","ICTS","Strategic ICTS (ICT Service Budget)","R4537"
"Wolverhampton City Council","http://opendatacommunities.org/id/metropolitan-district-council/wolverhampton","704855","Kenton Research Limited","OP/I025249","412.50","Computing - Internet","130228130","14/09/2018","ICTS","Strategic ICTS (ICT Service Budget)","R4537"
"Wolverhampton City Council","http://opendatacommunities.org/id/metropolitan-district-council/wolverhampton","704855","Kenton Research Limited","OP/I025251","517.50","Computing - Internet","130228132","14/09/2018","ICTS","Strategic ICTS (ICT Service Budget)","R4537"
"Wolverhampton City Council","http://opendatacommunities.org/id/metropolitan-district-council/wolverhampton","704855","Kenton Research Limited","OP/I024996","420.00","Computing - Internet","130228111","14/09/2018","ICTS","Strategic ICTS (ICT Service Budget)","R4537"
"Wolverhampton City Council","http://opendatacommunities.org/id/metropolitan-district-council/wolverhampton","704855","Kenton Research Limited","OP/I025005","500.00","Computing - Internet","130228118","14/09/2018","ICTS","Strategic ICTS (ICT Service Budget)","R4537"
"Wolverhampton City Council","http://opendatacommunities.org/id/metropolitan-district-council/wolverhampton","704855","Kenton Research Limited","OP/I024777","900.00","Computing - Internet","130228099","14/09/2018","ICTS","Strategic ICTS (ICT Service Budget)","R4537"
"Wolverhampton City Council","http://opendatacommunities.org/id/metropolitan-district-council/wolverhampton","704871","Keysoft Solutions Limited","2019201","7,220.00","Computing - Purchase of Hardware","130225282","05/09/2018","Transportation","Strategy & Development","R4530"
"Wolverhampton City Council","http://opendatacommunities.org/id/metropolitan-district-council/wolverhampton","704889","Killgerm Chemicals Limited","SI02-0197220","144.00","Materials","130226139","12/09/2018","Environmental Maintenance","Pest Control","R4007"
"Wolverhampton City Council","http://opendatacommunities.org/id/metropolitan-district-council/wolverhampton","704901","Kingfisher Environmental Servs Limited","1805411","76.67","Services - Professional Fees","130226954","05/09/2018","Leisure Services","Bert Williams Leisure Centre","R4400"
"Wolverhampton City Council","http://opendatacommunities.org/id/metropolitan-district-council/wolverhampton","704901","Kingfisher Environmental Servs Limited","1807329","76.67","Services - Professional Fees","130226955","05/09/2018","Leisure Services","Bert Williams Leisure Centre","R4400"
"Wolverhampton City Council","http://opendatacommunities.org/id/metropolitan-district-council/wolverhampton","704901","Kingfisher Environmental Servs Limited","1808208","76.67","Services - Professional Fees","130227709","12/09/2018","Leisure Services","Bert Williams Leisure Centre","R4400"
"Wolverhampton City Council","http://opendatacommunities.org/id/metropolitan-district-council/wolverhampton","704933","Kpmg Llp Fees Account","5501713203","11,000.00","Services - Professional Fees","130225593","05/09/2018","Procurement Services","Corporate Procurement Unit","R4400"
"Wolverhampton City Council","http://opendatacommunities.org/id/metropolitan-district-council/wolverhampton","704933","Kpmg Llp Fees Account","16088634","900.00","Services - Professional Fees","130228287","14/09/2018","Procurement Services","Corporate Procurement Unit","R4400"
"Wolverhampton City Council","http://opendatacommunities.org/id/metropolitan-district-council/wolverhampton","704941","Kyloe House Secure Unit","P185683 14101820180921","23,380.00","TPP - Residential Care - Long Term","190509789","26/09/2018","Looked After Children","Out of City - Pooled Budget","R5400"
"Wolverhampton City Council","http://opendatacommunities.org/id/metropolitan-district-council/wolverhampton","705089","Reliance Medical Limited","711512","10.00","Materials","130226958","05/09/2018","Facilities Management","Civic Centre","R4007"
"Wolverhampton City Council","http://opendatacommunities.org/id/metropolitan-district-council/wolverhampton","705089","Reliance Medical Limited","711512","27.80","Materials","130226958","05/09/2018","Facilities Management","Civic Centre","R4007"
"Wolverhampton City Council","http://opendatacommunities.org/id/metropolitan-district-council/wolverhampton","705183","Lodge Tyre Co.Limited","15R01121","-58.00","Vehicle Maintenance - Spare Parts","190502325","05/09/2018","Fleet Services","Fleet Management","R3009"
"Wolverhampton City Council","http://opendatacommunities.org/id/metropolitan-district-council/wolverhampton","705183","Lodge Tyre Co.Limited","PE005495","30.00","Vehicle Maintenance - Spare Parts","190506362","19/09/2018","Fleet Services","Fleet Management","R3009"
"Wolverhampton City Council","http://opendatacommunities.org/id/metropolitan-district-council/wolverhampton","705183","Lodge Tyre Co.Limited","PE005495","179.00","Vehicle Maintenance - Spare Parts","190506362","19/09/2018","Fleet Services","Fleet Management","R3009"
"Wolverhampton City Council","http://opendatacommunities.org/id/metropolitan-district-council/wolverhampton","705183","Lodge Tyre Co.Limited","PE005495","15.00","Vehicle Maintenance - Spare Parts","190506362","19/09/2018","Fleet Services","Fleet Management","R3009"
"Wolverhampton City Council","http://opendatacommunities.org/id/metropolitan-district-council/wolverhampton","705183","Lodge Tyre Co.Limited","PE005495","45.00","Vehicle Maintenance - Spare Parts","190506362","19/09/2018","Fleet Services","Fleet Management","R3009"
"Wolverhampton City Council","http://opendatacommunities.org/id/metropolitan-district-council/wolverhampton","705183","Lodge Tyre Co.Limited","PE005495","358.00","Vehicle Maintenance - Spare Parts","190506362","19/09/2018","Fleet Services","Fleet Management","R3009"
"Wolverhampton City Council","http://opendatacommunities.org/id/metropolitan-district-council/wolverhampton","705183","Lodge Tyre Co.Limited","PE005495","6.00","Vehicle Maintenance - Spare Parts","190506362","19/09/2018","Fleet Services","Fleet Management","R3009"
"Wolverhampton City Council","http://opendatacommunities.org/id/metropolitan-district-council/wolverhampton","705183","Lodge Tyre Co.Limited","PE005495","90.00","Vehicle Maintenance - Spare Parts","190506362","19/09/2018","Fleet Services","Fleet Management","R3009"
"Wolverhampton City Council","http://opendatacommunities.org/id/metropolitan-district-council/wolverhampton","705183","Lodge Tyre Co.Limited","PE005495","132.00","Vehicle Maintenance - Spare Parts","190506362","19/09/2018","Fleet Services","Fleet Management","R3009"
"Wolverhampton City Council","http://opendatacommunities.org/id/metropolitan-district-council/wolverhampton","705183","Lodge Tyre Co.Limited","PE005495","45.00","Vehicle Maintenance - Spare Parts","190506362","19/09/2018","Fleet Services","Fleet Management","R3009"
"Wolverhampton City Council","http://opendatacommunities.org/id/metropolitan-district-council/wolverhampton","705183","Lodge Tyre Co.Limited","PE005495","15.00","Vehicle Maintenance - Spare Parts","190506362","19/09/2018","Fleet Services","Fleet Management","R3009"
"Wolverhampton City Council","http://opendatacommunities.org/id/metropolitan-district-council/wolverhampton","705183","Lodge Tyre Co.Limited","PE005495","15.00","Vehicle Maintenance - Spare Parts","190506362","19/09/2018","Fleet Services","Fleet Management","R3009"
"Wolverhampton City Council","http://opendatacommunities.org/id/metropolitan-district-council/wolverhampton","705183","Lodge Tyre Co.Limited","PE005495","60.00","Vehicle Maintenance - Spare Parts","190506362","19/09/2018","Fleet Services","Fleet Management","R3009"
"Wolverhampton City Council","http://opendatacommunities.org/id/metropolitan-district-council/wolverhampton","705183","Lodge Tyre Co.Limited","PE005495","30.00","Vehicle Maintenance - Spare Parts","190506362","19/09/2018","Fleet Services","Fleet Management","R3009"
"Wolverhampton City Council","http://opendatacommunities.org/id/metropolitan-district-council/wolverhampton","705183","Lodge Tyre Co.Limited","PE005495","54.00","Vehicle Maintenance - Spare Parts","190506362","19/09/2018","Fleet Services","Fleet Management","R3009"
"Wolverhampton City Council","http://opendatacommunities.org/id/metropolitan-district-council/wolverhampton","705183","Lodge Tyre Co.Limited","PE005495","15.00","Vehicle Maintenance - Spare Parts","190506362","19/09/2018","Fleet Services","Fleet Management","R3009"
"Wolverhampton City Council","http://opendatacommunities.org/id/metropolitan-district-council/wolverhampton","705183","Lodge Tyre Co.Limited","PE005495","126.25","Vehicle Maintenance - Spare Parts","190506362","19/09/2018","Fleet Services","Fleet Management","R3009"
"Wolverhampton City Council","http://opendatacommunities.org/id/metropolitan-district-council/wolverhampton","705183","Lodge Tyre Co.Limited","PE005495","390.00","Vehicle Maintenance - Spare Parts","190506362","19/09/2018","Fleet Services","Fleet Management","R3009"
"Wolverhampton City Council","http://opendatacommunities.org/id/metropolitan-district-council/wolverhampton","705183","Lodge Tyre Co.Limited","PE005495","3.00","Vehicle Maintenance - Spare Parts","190506362","19/09/2018","Fleet Services","Fleet Management","R3009"
"Wolverhampton City Council","http://opendatacommunities.org/id/metropolitan-district-council/wolverhampton","705183","Lodge Tyre Co.Limited","PE005495","15.00","Vehicle Maintenance - Spare Parts","190506362","19/09/2018","Fleet Services","Fleet Management","R3009"
"Wolverhampton City Council","http://opendatacommunities.org/id/metropolitan-district-council/wolverhampton","705183","Lodge Tyre Co.Limited","PE005495","70.00","Vehicle Maintenance - Spare Parts","190506362","19/09/2018","Fleet Services","Fleet Management","R3009"
"Wolverhampton City Council","http://opendatacommunities.org/id/metropolitan-district-council/wolverhampton","705183","Lodge Tyre Co.Limited","PE005495","3.00","Vehicle Maintenance - Spare Parts","190506362","19/09/2018","Fleet Services","Fleet Management","R3009"
"Wolverhampton City Council","http://opendatacommunities.org/id/metropolitan-district-council/wolverhampton","705183","Lodge Tyre Co.Limited","PE005495","30.00","Vehicle Maintenance - Spare Parts","190506362","19/09/2018","Fleet Services","Fleet Management","R3009"
"Wolverhampton City Council","http://opendatacommunities.org/id/metropolitan-district-council/wolverhampton","705183","Lodge Tyre Co.Limited","PE005495","25.00","Vehicle Maintenance - Spare Parts","190506362","19/09/2018","Fleet Services","Fleet Management","R3009"
"Wolverhampton City Council","http://opendatacommunities.org/id/metropolitan-district-council/wolverhampton","705183","Lodge Tyre Co.Limited","PE005495","15.00","Vehicle Maintenance - Spare Parts","190506362","19/09/2018","Fleet Services","Fleet Management","R3009"
"Wolverhampton City Council","http://opendatacommunities.org/id/metropolitan-district-council/wolverhampton","705183","Lodge Tyre Co.Limited","PE005495","3.00","Vehicle Maintenance - Spare Parts","190506362","19/09/2018","Fleet Services","Fleet Management","R3009"
"Wolverhampton City Council","http://opendatacommunities.org/id/metropolitan-district-council/wolverhampton","705183","Lodge Tyre Co.Limited","PE005495","60.00","Vehicle Maintenance - Spare Parts","190506362","19/09/2018","Fleet Services","Fleet Management","R3009"
"Wolverhampton City Council","http://opendatacommunities.org/id/metropolitan-district-council/wolverhampton","705183","Lodge Tyre Co.Limited","PE005495","112.00","Vehicle Maintenance - Spare Parts","190506362","19/09/2018","Fleet Services","Fleet Management","R3009"
"Wolverhampton City Council","http://opendatacommunities.org/id/metropolitan-district-council/wolverhampton","705183","Lodge Tyre Co.Limited","PE005495","25.00","Vehicle Maintenance - Spare Parts","190506362","19/09/2018","Fleet Services","Fleet Management","R3009"
"Wolverhampton City Council","http://opendatacommunities.org/id/metropolitan-district-council/wolverhampton","705183","Lodge Tyre Co.Limited","PE005495","126.25","Vehicle Maintenance - Spare Parts","190506362","19/09/2018","Fleet Services","Fleet Management","R3009"
"Wolverhampton City Council","http://opendatacommunities.org/id/metropolitan-district-council/wolverhampton","705183","Lodge Tyre Co.Limited","PE005495","70.00","Vehicle Maintenance - Spare Parts","190506362","19/09/2018","Fleet Services","Fleet Management","R3009"
"Wolverhampton City Council","http://opendatacommunities.org/id/metropolitan-district-council/wolverhampton","705183","Lodge Tyre Co.Limited","PE005495","66.00","Vehicle Maintenance - Spare Parts","190506362","19/09/2018","Fleet Services","Fleet Management","R3009"
"Wolverhampton City Council","http://opendatacommunities.org/id/metropolitan-district-council/wolverhampton","705183","Lodge Tyre Co.Limited","PE005495","56.00","Vehicle Maintenance - Spare Parts","190506362","19/09/2018","Fleet Services","Fleet Management","R3009"
"Wolverhampton City Council","http://opendatacommunities.org/id/metropolitan-district-council/wolverhampton","705183","Lodge Tyre Co.Limited","PE005495","15.00","Vehicle Maintenance - Spare Parts","190506362","19/09/2018","Fleet Services","Fleet Management","R3009"
"Wolverhampton City Council","http://opendatacommunities.org/id/metropolitan-district-council/wolverhampton","705183","Lodge Tyre Co.Limited","PE005495","15.00","Vehicle Maintenance - Spare Parts","190506362","19/09/2018","Fleet Services","Fleet Management","R3009"
"Wolverhampton City Council","http://opendatacommunities.org/id/metropolitan-district-council/wolverhampton","705183","Lodge Tyre Co.Limited","PE005495","108.00","Vehicle Maintenance - Spare Parts","190506362","19/09/2018","Fleet Services","Fleet Management","R3009"
"Wolverhampton City Council","http://opendatacommunities.org/id/metropolitan-district-council/wolverhampton","705183","Lodge Tyre Co.Limited","PE005495","10.00","Vehicle Maintenance - Spare Parts","190506362","19/09/2018","Fleet Services","Fleet Management","R3009"
"Wolverhampton City Council","http://opendatacommunities.org/id/metropolitan-district-council/wolverhampton","705183","Lodge Tyre Co.Limited","PE005495","60.00","Vehicle Maintenance - Spare Parts","190506362","19/09/2018","Fleet Services","Fleet Management","R3009"
"Wolverhampton City Council","http://opendatacommunities.org/id/metropolitan-district-council/wolverhampton","705183","Lodge Tyre Co.Limited","PE005495","15.00","Vehicle Maintenance - Spare Parts","190506362","19/09/2018","Fleet Services","Fleet Management","R3009"
"Wolverhampton City Council","http://opendatacommunities.org/id/metropolitan-district-council/wolverhampton","705183","Lodge Tyre Co.Limited","PE005495","71.00","Vehicle Maintenance - Spare Parts","190506362","19/09/2018","Fleet Services","Fleet Management","R3009"
"Wolverhampton City Council","http://opendatacommunities.org/id/metropolitan-district-council/wolverhampton","705183","Lodge Tyre Co.Limited","PE005495","15.00","Vehicle Maintenance - Spare Parts","190506362","19/09/2018","Fleet Services","Fleet Management","R3009"
"Wolverhampton City Council","http://opendatacommunities.org/id/metropolitan-district-council/wolverhampton","705183","Lodge Tyre Co.Limited","PE005495","60.00","Vehicle Maintenance - Spare Parts","190506362","19/09/2018","Fleet Services","Fleet Management","R3009"
"Wolverhampton City Council","http://opendatacommunities.org/id/metropolitan-district-council/wolverhampton","705183","Lodge Tyre Co.Limited","PE005495","6.00","Vehicle Maintenance - Spare Parts","190506362","19/09/2018","Fleet Services","Fleet Management","R3009"
"Wolverhampton City Council","http://opendatacommunities.org/id/metropolitan-district-council/wolverhampton","705183","Lodge Tyre Co.Limited","PE005495","195.00","Vehicle Maintenance - Spare Parts","190506362","19/09/2018","Fleet Services","Fleet Management","R3009"
"Wolverhampton City Council","http://opendatacommunities.org/id/metropolitan-district-council/wolverhampton","705183","Lodge Tyre Co.Limited","PE005495","140.00","Vehicle Maintenance - Spare Parts","190506362","19/09/2018","Fleet Services","Fleet Management","R3009"
"Wolverhampton City Council","http://opendatacommunities.org/id/metropolitan-district-council/wolverhampton","705183","Lodge Tyre Co.Limited","PE005495","15.00","Vehicle Maintenance - Spare Parts","190506362","19/09/2018","Fleet Services","Fleet Management","R3009"
"Wolverhampton City Council","http://opendatacommunities.org/id/metropolitan-district-council/wolverhampton","705183","Lodge Tyre Co.Limited","PE005495","88.95","Vehicle Maintenance - Spare Parts","190506362","19/09/2018","Fleet Services","Fleet Management","R3009"
"Wolverhampton City Council","http://opendatacommunities.org/id/metropolitan-district-council/wolverhampton","705183","Lodge Tyre Co.Limited","PE005495","15.00","Vehicle Maintenance - Spare Parts","190506362","19/09/2018","Fleet Services","Fleet Management","R3009"
"Wolverhampton City Council","http://opendatacommunities.org/id/metropolitan-district-council/wolverhampton","705183","Lodge Tyre Co.Limited","PE005495","15.00","Vehicle Maintenance - Spare Parts","190506362","19/09/2018","Fleet Services","Fleet Management","R3009"
"Wolverhampton City Council","http://opendatacommunities.org/id/metropolitan-district-council/wolverhampton","705183","Lodge Tyre Co.Limited","PE005495","85.61","Vehicle Maintenance - Spare Parts","190506362","19/09/2018","Fleet Services","Fleet Management","R3009"
"Wolverhampton City Council","http://opendatacommunities.org/id/metropolitan-district-council/wolverhampton","705183","Lodge Tyre Co.Limited","PE005495","15.00","Vehicle Maintenance - Spare Parts","190506362","19/09/2018","Fleet Services","Fleet Management","R3009"
"Wolverhampton City Council","http://opendatacommunities.org/id/metropolitan-district-council/wolverhampton","705183","Lodge Tyre Co.Limited","PE005495","15.00","Vehicle Maintenance - Spare Parts","190506362","19/09/2018","Fleet Services","Fleet Management","R3009"
"Wolverhampton City Council","http://opendatacommunities.org/id/metropolitan-district-council/wolverhampton","705183","Lodge Tyre Co.Limited","PE005495","57.95","Vehicle Maintenance - Spare Parts","190506362","19/09/2018","Fleet Services","Fleet Management","R3009"
"Wolverhampton City Council","http://opendatacommunities.org/id/metropolitan-district-council/wolverhampton","705183","Lodge Tyre Co.Limited","PE005495","15.00","Vehicle Maintenance - Spare Parts","190506362","19/09/2018","Fleet Services","Fleet Management","R3009"
"Wolverhampton City Council","http://opendatacommunities.org/id/metropolitan-district-council/wolverhampton","705183","Lodge Tyre Co.Limited","PE005495","15.00","Vehicle Maintenance - Spare Parts","190506362","19/09/2018","Fleet Services","Fleet Management","R3009"
"Wolverhampton City Council","http://opendatacommunities.org/id/metropolitan-district-council/wolverhampton","705183","Lodge Tyre Co.Limited","PE005495","400.00","Vehicle Maintenance - Spare Parts","190506362","19/09/2018","Fleet Services","Fleet Management","R3009"
"Wolverhampton City Council","http://opendatacommunities.org/id/metropolitan-district-council/wolverhampton","705183","Lodge Tyre Co.Limited","PE005495","15.00","Vehicle Maintenance - Spare Parts","190506362","19/09/2018","Fleet Services","Fleet Management","R3009"
"Wolverhampton City Council","http://opendatacommunities.org/id/metropolitan-district-council/wolverhampton","705183","Lodge Tyre Co.Limited","PE005495","15.00","Vehicle Maintenance - Spare Parts","190506362","19/09/2018","Fleet Services","Fleet Management","R3009"
"Wolverhampton City Council","http://opendatacommunities.org/id/metropolitan-district-council/wolverhampton","705183","Lodge Tyre Co.Limited","PE005495","15.00","Vehicle Maintenance - Spare Parts","190506362","19/09/2018","Fleet Services","Fleet Management","R3009"
"Wolverhampton City Council","http://opendatacommunities.org/id/metropolitan-district-council/wolverhampton","705183","Lodge Tyre Co.Limited","PE005495","60.00","Vehicle Maintenance - Spare Parts","190506362","19/09/2018","Fleet Services","Fleet Management","R3009"
"Wolverhampton City Council","http://opendatacommunities.org/id/metropolitan-district-council/wolverhampton","705183","Lodge Tyre Co.Limited","PE005495","15.00","Vehicle Maintenance - Spare Parts","190506362","19/09/2018","Fleet Services","Fleet Management","R3009"
"Wolverhampton City Council","http://opendatacommunities.org/id/metropolitan-district-council/wolverhampton","705183","Lodge Tyre Co.Limited","PE005495","56.00","Vehicle Maintenance - Spare Parts","190506362","19/09/2018","Fleet Services","Fleet Management","R3009"
"Wolverhampton City Council","http://opendatacommunities.org/id/metropolitan-district-council/wolverhampton","705183","Lodge Tyre Co.Limited","PE005495","132.00","Vehicle Maintenance - Spare Parts","190506362","19/09/2018","Fleet Services","Fleet Management","R3009"
"Wolverhampton City Council","http://opendatacommunities.org/id/metropolitan-district-council/wolverhampton","705183","Lodge Tyre Co.Limited","PE005495","66.00","Vehicle Maintenance - Spare Parts","190506362","19/09/2018","Fleet Services","Fleet Management","R3009"
"Wolverhampton City Council","http://opendatacommunities.org/id/metropolitan-district-council/wolverhampton","705183","Lodge Tyre Co.Limited","PE005495","15.00","Vehicle Maintenance - Spare Parts","190506362","19/09/2018","Fleet Services","Fleet Management","R3009"
"Wolverhampton City Council","http://opendatacommunities.org/id/metropolitan-district-council/wolverhampton","705183","Lodge Tyre Co.Limited","PE005495","60.00","Vehicle Maintenance - Spare Parts","190506362","19/09/2018","Fleet Services","Fleet Management","R3009"
"Wolverhampton City Council","http://opendatacommunities.org/id/metropolitan-district-council/wolverhampton","705183","Lodge Tyre Co.Limited","PE005495","120.00","Vehicle Maintenance - Spare Parts","190506362","19/09/2018","Fleet Services","Fleet Management","R3009"
"Wolverhampton City Council","http://opendatacommunities.org/id/metropolitan-district-council/wolverhampton","705183","Lodge Tyre Co.Limited","PE005495","15.00","Vehicle Maintenance - Spare Parts","190506362","19/09/2018","Fleet Services","Fleet Management","R3009"
"Wolverhampton City Council","http://opendatacommunities.org/id/metropolitan-district-council/wolverhampton","705183","Lodge Tyre Co.Limited","PE005495","141.50","Vehicle Maintenance - Spare Parts","190506362","19/09/2018","Fleet Services","Fleet Management","R3009"
"Wolverhampton City Council","http://opendatacommunities.org/id/metropolitan-district-council/wolverhampton","705183","Lodge Tyre Co.Limited","PE005495","70.75","Vehicle Maintenance - Spare Parts","190506362","19/09/2018","Fleet Services","Fleet Management","R3009"
"Wolverhampton City Council","http://opendatacommunities.org/id/metropolitan-district-council/wolverhampton","705183","Lodge Tyre Co.Limited","PE005495","15.00","Vehicle Maintenance - Spare Parts","190506362","19/09/2018","Fleet Services","Fleet Management","R3009"
"Wolverhampton City Council","http://opendatacommunities.org/id/metropolitan-district-council/wolverhampton","705183","Lodge Tyre Co.Limited","PE005495","60.00","Vehicle Maintenance - Spare Parts","190506362","19/09/2018","Fleet Services","Fleet Management","R3009"
"Wolverhampton City Council","http://opendatacommunities.org/id/metropolitan-district-council/wolverhampton","705183","Lodge Tyre Co.Limited","PE005495","60.00","Vehicle Maintenance - Spare Parts","190506362","19/09/2018","Fleet Services","Fleet Management","R3009"
"Wolverhampton City Council","http://opendatacommunities.org/id/metropolitan-district-council/wolverhampton","705183","Lodge Tyre Co.Limited","PE005495","132.00","Vehicle Maintenance - Spare Parts","190506362","19/09/2018","Fleet Services","Fleet Management","R3009"
"Wolverhampton City Council","http://opendatacommunities.org/id/metropolitan-district-council/wolverhampton","705183","Lodge Tyre Co.Limited","PE005495","60.00","Vehicle Maintenance - Spare Parts","190506362","19/09/2018","Fleet Services","Fleet Management","R3009"
"Wolverhampton City Council","http://opendatacommunities.org/id/metropolitan-district-council/wolverhampton","705183","Lodge Tyre Co.Limited","PE005495","3.00","Vehicle Maintenance - Spare Parts","190506362","19/09/2018","Fleet Services","Fleet Management","R3009"
"Wolverhampton City Council","http://opendatacommunities.org/id/metropolitan-district-council/wolverhampton","705183","Lodge Tyre Co.Limited","PE005442","390.00","Vehicle Maintenance - Spare Parts","190502351","05/09/2018","Fleet Services","Fleet Management","R3009"
"Wolverhampton City Council","http://opendatacommunities.org/id/metropolitan-district-council/wolverhampton","705183","Lodge Tyre Co.Limited","PE005442","195.00","Vehicle Maintenance - Spare Parts","190502351","05/09/2018","Fleet Services","Fleet Management","R3009"
"Wolverhampton City Council","http://opendatacommunities.org/id/metropolitan-district-council/wolverhampton","705183","Lodge Tyre Co.Limited","PE005442","585.00","Vehicle Maintenance - Spare Parts","190502351","05/09/2018","Fleet Services","Fleet Management","R3009"
"Wolverhampton City Council","http://opendatacommunities.org/id/metropolitan-district-council/wolverhampton","705183","Lodge Tyre Co.Limited","PE005442","60.00","Vehicle Maintenance - Spare Parts","190502351","05/09/2018","Fleet Services","Fleet Management","R3009"
"Wolverhampton City Council","http://opendatacommunities.org/id/metropolitan-district-council/wolverhampton","705183","Lodge Tyre Co.Limited","PE005442","25.00","Vehicle Maintenance - Spare Parts","190502351","05/09/2018","Fleet Services","Fleet Management","R3009"
"Wolverhampton City Council","http://opendatacommunities.org/id/metropolitan-district-council/wolverhampton","705183","Lodge Tyre Co.Limited","PE005442","125.00","Vehicle Maintenance - Spare Parts","190502351","05/09/2018","Fleet Services","Fleet Management","R3009"
"Wolverhampton City Council","http://opendatacommunities.org/id/metropolitan-district-council/wolverhampton","705183","Lodge Tyre Co.Limited","PE005442","390.00","Vehicle Maintenance - Spare Parts","190502351","05/09/2018","Fleet Services","Fleet Management","R3009"
"Wolverhampton City Council","http://opendatacommunities.org/id/metropolitan-district-council/wolverhampton","705183","Lodge Tyre Co.Limited","PE005442","390.00","Vehicle Maintenance - Spare Parts","190502351","05/09/2018","Fleet Services","Fleet Management","R3009"
"Wolverhampton City Council","http://opendatacommunities.org/id/metropolitan-district-council/wolverhampton","705183","Lodge Tyre Co.Limited","PE005442","195.00","Vehicle Maintenance - Spare Parts","190502351","05/09/2018","Fleet Services","Fleet Management","R3009"
"Wolverhampton City Council","http://opendatacommunities.org/id/metropolitan-district-council/wolverhampton","705183","Lodge Tyre Co.Limited","PE005442","195.00","Vehicle Maintenance - Spare Parts","190502351","05/09/2018","Fleet Services","Fleet Management","R3009"
"Wolverhampton City Council","http://opendatacommunities.org/id/metropolitan-district-council/wolverhampton","705183","Lodge Tyre Co.Limited","PE005442","60.00","Vehicle Maintenance - Spare Parts","190502351","05/09/2018","Fleet Services","Fleet Management","R3009"
"Wolverhampton City Council","http://opendatacommunities.org/id/metropolitan-district-council/wolverhampton","705183","Lodge Tyre Co.Limited","PE005442","390.00","Vehicle Maintenance - Spare Parts","190502351","05/09/2018","Fleet Services","Fleet Management","R3009"
"Wolverhampton City Council","http://opendatacommunities.org/id/metropolitan-district-council/wolverhampton","705183","Lodge Tyre Co.Limited","PE005442","15.00","Vehicle Maintenance - Spare Parts","190502351","05/09/2018","Fleet Services","Fleet Management","R3009"
"Wolverhampton City Council","http://opendatacommunities.org/id/metropolitan-district-council/wolverhampton","705183","Lodge Tyre Co.Limited","PE005442","15.00","Vehicle Maintenance - Spare Parts","190502351","05/09/2018","Fleet Services","Fleet Management","R3009"
"Wolverhampton City Council","http://opendatacommunities.org/id/metropolitan-district-council/wolverhampton","705183","Lodge Tyre Co.Limited","PE005442","56.00","Vehicle Maintenance - Spare Parts","190502351","05/09/2018","Fleet Services","Fleet Management","R3009"
"Wolverhampton City Council","http://opendatacommunities.org/id/metropolitan-district-council/wolverhampton","705183","Lodge Tyre Co.Limited","PE005442","15.00","Vehicle Maintenance - Spare Parts","190502351","05/09/2018","Fleet Services","Fleet Management","R3009"
"Wolverhampton City Council","http://opendatacommunities.org/id/metropolitan-district-council/wolverhampton","705183","Lodge Tyre Co.Limited","PE005442","66.00","Vehicle Maintenance - Spare Parts","190502351","05/09/2018","Fleet Services","Fleet Management","R3009"
"Wolverhampton City Council","http://opendatacommunities.org/id/metropolitan-district-council/wolverhampton","705183","Lodge Tyre Co.Limited","PE005442","66.00","Vehicle Maintenance - Spare Parts","190502351","05/09/2018","Fleet Services","Fleet Management","R3009"
"Wolverhampton City Council","http://opendatacommunities.org/id/metropolitan-district-council/wolverhampton","705183","Lodge Tyre Co.Limited","PE005442","58.00","Vehicle Maintenance - Spare Parts","190502351","05/09/2018","Fleet Services","Fleet Management","R3009"
"Wolverhampton City Council","http://opendatacommunities.org/id/metropolitan-district-council/wolverhampton","705183","Lodge Tyre Co.Limited","PE005442","15.00","Vehicle Maintenance - Spare Parts","190502351","05/09/2018","Fleet Services","Fleet Management","R3009"
"Wolverhampton City Council","http://opendatacommunities.org/id/metropolitan-district-council/wolverhampton","705183","Lodge Tyre Co.Limited","PE005442","15.00","Vehicle Maintenance - Spare Parts","190502351","05/09/2018","Fleet Services","Fleet Management","R3009"
"Wolverhampton City Council","http://opendatacommunities.org/id/metropolitan-district-council/wolverhampton","705183","Lodge Tyre Co.Limited","PE005442","30.00","Vehicle Maintenance - Spare Parts","190502351","05/09/2018","Fleet Services","Fleet Management","R3009"
"Wolverhampton City Council","http://opendatacommunities.org/id/metropolitan-district-council/wolverhampton","705183","Lodge Tyre Co.Limited","PE005442","30.00","Vehicle Maintenance - Spare Parts","190502351","05/09/2018","Fleet Services","Fleet Management","R3009"
"Wolverhampton City Council","http://opendatacommunities.org/id/metropolitan-district-council/wolverhampton","705183","Lodge Tyre Co.Limited","PE005442","390.00","Vehicle Maintenance - Spare Parts","190502351","05/09/2018","Fleet Services","Fleet Management","R3009"
"Wolverhampton City Council","http://opendatacommunities.org/id/metropolitan-district-council/wolverhampton","705183","Lodge Tyre Co.Limited","PE005442","210.00","Vehicle Maintenance - Spare Parts","190502351","05/09/2018","Fleet Services","Fleet Management","R3009"
"Wolverhampton City Council","http://opendatacommunities.org/id/metropolitan-district-council/wolverhampton","705183","Lodge Tyre Co.Limited","PE005442","25.00","Vehicle Maintenance - Spare Parts","190502351","05/09/2018","Fleet Services","Fleet Management","R3009"
"Wolverhampton City Council","http://opendatacommunities.org/id/metropolitan-district-council/wolverhampton","705183","Lodge Tyre Co.Limited","PE005442","25.00","Vehicle Maintenance - Spare Parts","190502351","05/09/2018","Fleet Services","Fleet Management","R3009"
"Wolverhampton City Council","http://opendatacommunities.org/id/metropolitan-district-council/wolverhampton","705183","Lodge Tyre Co.Limited","PE005442","195.00","Vehicle Maintenance - Spare Parts","190502351","05/09/2018","Fleet Services","Fleet Management","R3009"
"Wolverhampton City Council","http://opendatacommunities.org/id/metropolitan-district-council/wolverhampton","705183","Lodge Tyre Co.Limited","PE005442","390.00","Vehicle Maintenance - Spare Parts","190502351","05/09/2018","Fleet Services","Fleet Management","R3009"
"Wolverhampton City Council","http://opendatacommunities.org/id/metropolitan-district-council/wolverhampton","705183","Lodge Tyre Co.Limited","PE005442","390.00","Vehicle Maintenance - Spare Parts","190502351","05/09/2018","Fleet Services","Fleet Management","R3009"
"Wolverhampton City Council","http://opendatacommunities.org/id/metropolitan-district-council/wolverhampton","705183","Lodge Tyre Co.Limited","PE005442","30.00","Vehicle Maintenance - Spare Parts","190502351","05/09/2018","Fleet Services","Fleet Management","R3009"
"Wolverhampton City Council","http://opendatacommunities.org/id/metropolitan-district-council/wolverhampton","705183","Lodge Tyre Co.Limited","PE005442","240.00","Vehicle Maintenance - Spare Parts","190502351","05/09/2018","Fleet Services","Fleet Management","R3009"
"Wolverhampton City Council","http://opendatacommunities.org/id/metropolitan-district-council/wolverhampton","705183","Lodge Tyre Co.Limited","PE005442","50.00","Vehicle Maintenance - Spare Parts","190502351","05/09/2018","Fleet Services","Fleet Management","R3009"
"Wolverhampton City Council","http://opendatacommunities.org/id/metropolitan-district-council/wolverhampton","705183","Lodge Tyre Co.Limited","PE005442","25.00","Vehicle Maintenance - Spare Parts","190502351","05/09/2018","Fleet Services","Fleet Management","R3009"
"Wolverhampton City Council","http://opendatacommunities.org/id/metropolitan-district-council/wolverhampton","705183","Lodge Tyre Co.Limited","PE005442","390.00","Vehicle Maintenance - Spare Parts","190502351","05/09/2018","Fleet Services","Fleet Management","R3009"
"Wolverhampton City Council","http://opendatacommunities.org/id/metropolitan-district-council/wolverhampton","705183","Lodge Tyre Co.Limited","PE005442","390.00","Vehicle Maintenance - Spare Parts","190502351","05/09/2018","Fleet Services","Fleet Management","R3009"
"Wolverhampton City Council","http://opendatacommunities.org/id/metropolitan-district-council/wolverhampton","705183","Lodge Tyre Co.Limited","PE005442","390.00","Vehicle Maintenance - Spare Parts","190502351","05/09/2018","Fleet Services","Fleet Management","R3009"
"Wolverhampton City Council","http://opendatacommunities.org/id/metropolitan-district-council/wolverhampton","705183","Lodge Tyre Co.Limited","PE005442","390.00","Vehicle Maintenance - Spare Parts","190502351","05/09/2018","Fleet Services","Fleet Management","R3009"
"Wolverhampton City Council","http://opendatacommunities.org/id/metropolitan-district-council/wolverhampton","705183","Lodge Tyre Co.Limited","PE005442","50.00","Vehicle Maintenance - Spare Parts","190502351","05/09/2018","Fleet Services","Fleet Management","R3009"
"Wolverhampton City Council","http://opendatacommunities.org/id/metropolitan-district-council/wolverhampton","705183","Lodge Tyre Co.Limited","PE005442","280.00","Vehicle Maintenance - Spare Parts","190502351","05/09/2018","Fleet Services","Fleet Management","R3009"
"Wolverhampton City Council","http://opendatacommunities.org/id/metropolitan-district-council/wolverhampton","705183","Lodge Tyre Co.Limited","PE005442","60.00","Vehicle Maintenance - Spare Parts","190502351","05/09/2018","Fleet Services","Fleet Management","R3009"
"Wolverhampton City Council","http://opendatacommunities.org/id/metropolitan-district-council/wolverhampton","705183","Lodge Tyre Co.Limited","PE005442","30.00","Vehicle Maintenance - Spare Parts","190502351","05/09/2018","Fleet Services","Fleet Management","R3009"
"Wolverhampton City Council","http://opendatacommunities.org/id/metropolitan-district-council/wolverhampton","705183","Lodge Tyre Co.Limited","PE005442","3.00","Vehicle Maintenance - Spare Parts","190502351","05/09/2018","Fleet Services","Fleet Management","R3009"
"Wolverhampton City Council","http://opendatacommunities.org/id/metropolitan-district-council/wolverhampton","705183","Lodge Tyre Co.Limited","PE005442","15.00","Vehicle Maintenance - Spare Parts","190502351","05/09/2018","Fleet Services","Fleet Management","R3009"
"Wolverhampton City Council","http://opendatacommunities.org/id/metropolitan-district-council/wolverhampton","705183","Lodge Tyre Co.Limited","PE005442","55.00","Vehicle Maintenance - Spare Parts","190502351","05/09/2018","Fleet Services","Fleet Management","R3009"
"Wolverhampton City Council","http://opendatacommunities.org/id/metropolitan-district-council/wolverhampton","705183","Lodge Tyre Co.Limited","PE005442","70.00","Vehicle Maintenance - Spare Parts","190502351","05/09/2018","Fleet Services","Fleet Management","R3009"
"Wolverhampton City Council","http://opendatacommunities.org/id/metropolitan-district-council/wolverhampton","705183","Lodge Tyre Co.Limited","PE005442","3.00","Vehicle Maintenance - Spare Parts","190502351","05/09/2018","Fleet Services","Fleet Management","R3009"
"Wolverhampton City Council","http://opendatacommunities.org/id/metropolitan-district-council/wolverhampton","705183","Lodge Tyre Co.Limited","PE005442","3.00","Vehicle Maintenance - Spare Parts","190502351","05/09/2018","Fleet Services","Fleet Management","R3009"
"Wolverhampton City Council","http://opendatacommunities.org/id/metropolitan-district-council/wolverhampton","705183","Lodge Tyre Co.Limited","PE005442","70.00","Vehicle Maintenance - Spare Parts","190502351","05/09/2018","Fleet Services","Fleet Management","R3009"
"Wolverhampton City Council","http://opendatacommunities.org/id/metropolitan-district-council/wolverhampton","705183","Lodge Tyre Co.Limited","PE005442","15.00","Vehicle Maintenance - Spare Parts","190502351","05/09/2018","Fleet Services","Fleet Management","R3009"
"Wolverhampton City Council","http://opendatacommunities.org/id/metropolitan-district-council/wolverhampton","705183","Lodge Tyre Co.Limited","PE005442","3.00","Vehicle Maintenance - Spare Parts","190502351","05/09/2018","Fleet Services","Fleet Management","R3009"
"Wolverhampton City Council","http://opendatacommunities.org/id/metropolitan-district-council/wolverhampton","705183","Lodge Tyre Co.Limited","PE005442","126.25","Vehicle Maintenance - Spare Parts","190502351","05/09/2018","Fleet Services","Fleet Management","R3009"
"Wolverhampton City Council","http://opendatacommunities.org/id/metropolitan-district-council/wolverhampton","705183","Lodge Tyre Co.Limited","PE005442","126.25","Vehicle Maintenance - Spare Parts","190502351","05/09/2018","Fleet Services","Fleet Management","R3009"
"Wolverhampton City Council","http://opendatacommunities.org/id/metropolitan-district-council/wolverhampton","705183","Lodge Tyre Co.Limited","PE005442","15.00","Vehicle Maintenance - Spare Parts","190502351","05/09/2018","Fleet Services","Fleet Management","R3009"
"Wolverhampton City Council","http://opendatacommunities.org/id/metropolitan-district-council/wolverhampton","705183","Lodge Tyre Co.Limited","PE005442","70.00","Vehicle Maintenance - Spare Parts","190502351","05/09/2018","Fleet Services","Fleet Management","R3009"
"Wolverhampton City Council","http://opendatacommunities.org/id/metropolitan-district-council/wolverhampton","705183","Lodge Tyre Co.Limited","PE005442","15.00","Vehicle Maintenance - Spare Parts","190502351","05/09/2018","Fleet Services","Fleet Management","R3009"
"Wolverhampton City Council","http://opendatacommunities.org/id/metropolitan-district-council/wolverhampton","705183","Lodge Tyre Co.Limited","PE005442","390.00","Vehicle Maintenance - Spare Parts","190502351","05/09/2018","Fleet Services","Fleet Management","R3009"
"Wolverhampton City Council","http://opendatacommunities.org/id/metropolitan-district-council/wolverhampton","705183","Lodge Tyre Co.Limited","PE005442","15.00","Vehicle Maintenance - Spare Parts","190502351","05/09/2018","Fleet Services","Fleet Management","R3009"
"Wolverhampton City Council","http://opendatacommunities.org/id/metropolitan-district-council/wolverhampton","705183","Lodge Tyre Co.Limited","PE005442","66.00","Vehicle Maintenance - Spare Parts","190502351","05/09/2018","Fleet Services","Fleet Management","R3009"
"Wolverhampton City Council","http://opendatacommunities.org/id/metropolitan-district-council/wolverhampton","705183","Lodge Tyre Co.Limited","PE005442","54.00","Vehicle Maintenance - Spare Parts","190502351","05/09/2018","Fleet Services","Fleet Management","R3009"
"Wolverhampton City Council","http://opendatacommunities.org/id/metropolitan-district-council/wolverhampton","705183","Lodge Tyre Co.Limited","PE005442","60.00","Vehicle Maintenance - Spare Parts","190502351","05/09/2018","Fleet Services","Fleet Management","R3009"
"Wolverhampton City Council","http://opendatacommunities.org/id/metropolitan-district-council/wolverhampton","705183","Lodge Tyre Co.Limited","PE005442","180.00","Vehicle Maintenance - Spare Parts","190502351","05/09/2018","Fleet Services","Fleet Management","R3009"
"Wolverhampton City Council","http://opendatacommunities.org/id/metropolitan-district-council/wolverhampton","705183","Lodge Tyre Co.Limited","PE005442","66.00","Vehicle Maintenance - Spare Parts","190502351","05/09/2018","Fleet Services","Fleet Management","R3009"
"Wolverhampton City Council","http://opendatacommunities.org/id/metropolitan-district-council/wolverhampton","705183","Lodge Tyre Co.Limited","PE005442","15.00","Vehicle Maintenance - Spare Parts","190502351","05/09/2018","Fleet Services","Fleet Management","R3009"
"Wolverhampton City Council","http://opendatacommunities.org/id/metropolitan-district-council/wolverhampton","705183","Lodge Tyre Co.Limited","PE005442","15.00","Vehicle Maintenance - Spare Parts","190502351","05/09/2018","Fleet Services","Fleet Management","R3009"
"Wolverhampton City Council","http://opendatacommunities.org/id/metropolitan-district-council/wolverhampton","705183","Lodge Tyre Co.Limited","PE005442","10.00","Vehicle Maintenance - Spare Parts","190502351","05/09/2018","Fleet Services","Fleet Management","R3009"
"Wolverhampton City Council","http://opendatacommunities.org/id/metropolitan-district-council/wolverhampton","705183","Lodge Tyre Co.Limited","PE005442","54.00","Vehicle Maintenance - Spare Parts","190502351","05/09/2018","Fleet Services","Fleet Management","R3009"
"Wolverhampton City Council","http://opendatacommunities.org/id/metropolitan-district-council/wolverhampton","705183","Lodge Tyre Co.Limited","PE005442","85.61","Vehicle Maintenance - Spare Parts","190502351","05/09/2018","Fleet Services","Fleet Management","R3009"
"Wolverhampton City Council","http://opendatacommunities.org/id/metropolitan-district-council/wolverhampton","705183","Lodge Tyre Co.Limited","PE005442","3.00","Vehicle Maintenance - Spare Parts","190502351","05/09/2018","Fleet Services","Fleet Management","R3009"
"Wolverhampton City Council","http://opendatacommunities.org/id/metropolitan-district-council/wolverhampton","705183","Lodge Tyre Co.Limited","PE005442","70.00","Vehicle Maintenance - Spare Parts","190502351","05/09/2018","Fleet Services","Fleet Management","R3009"
"Wolverhampton City Council","http://opendatacommunities.org/id/metropolitan-district-council/wolverhampton","705183","Lodge Tyre Co.Limited","PE005442","60.00","Vehicle Maintenance - Spare Parts","190502351","05/09/2018","Fleet Services","Fleet Management","R3009"
"Wolverhampton City Council","http://opendatacommunities.org/id/metropolitan-district-council/wolverhampton","705183","Lodge Tyre Co.Limited","PE005442","3.00","Vehicle Maintenance - Spare Parts","190502351","05/09/2018","Fleet Services","Fleet Management","R3009"
"Wolverhampton City Council","http://opendatacommunities.org/id/metropolitan-district-council/wolverhampton","705183","Lodge Tyre Co.Limited","PE005442","3.00","Vehicle Maintenance - Spare Parts","190502351","05/09/2018","Fleet Services","Fleet Management","R3009"
"Wolverhampton City Council","http://opendatacommunities.org/id/metropolitan-district-council/wolverhampton","705183","Lodge Tyre Co.Limited","PE005442","70.00","Vehicle Maintenance - Spare Parts","190502351","05/09/2018","Fleet Services","Fleet Management","R3009"
"Wolverhampton City Council","http://opendatacommunities.org/id/metropolitan-district-council/wolverhampton","705183","Lodge Tyre Co.Limited","PE005442","3.00","Vehicle Maintenance - Spare Parts","190502351","05/09/2018","Fleet Services","Fleet Management","R3009"
"Wolverhampton City Council","http://opendatacommunities.org/id/metropolitan-district-council/wolverhampton","705183","Lodge Tyre Co.Limited","PE005442","70.00","Vehicle Maintenance - Spare Parts","190502351","05/09/2018","Fleet Services","Fleet Management","R3009"
"Wolverhampton City Council","http://opendatacommunities.org/id/metropolitan-district-council/wolverhampton","705183","Lodge Tyre Co.Limited","PE005442","280.00","Vehicle Maintenance - Spare Parts","190502351","05/09/2018","Fleet Services","Fleet Management","R3009"
"Wolverhampton City Council","http://opendatacommunities.org/id/metropolitan-district-council/wolverhampton","705183","Lodge Tyre Co.Limited","PE005442","198.78","Vehicle Maintenance - Spare Parts","190502351","05/09/2018","Fleet Services","Fleet Management","R3009"
"Wolverhampton City Council","http://opendatacommunities.org/id/metropolitan-district-council/wolverhampton","705183","Lodge Tyre Co.Limited","PE005442","116.00","Vehicle Maintenance - Spare Parts","190502351","05/09/2018","Fleet Services","Fleet Management","R3009"
"Wolverhampton City Council","http://opendatacommunities.org/id/metropolitan-district-council/wolverhampton","705183","Lodge Tyre Co.Limited","PE005442","15.00","Vehicle Maintenance - Spare Parts","190502351","05/09/2018","Fleet Services","Fleet Management","R3009"
"Wolverhampton City Council","http://opendatacommunities.org/id/metropolitan-district-council/wolverhampton","705183","Lodge Tyre Co.Limited","PE005442","15.00","Vehicle Maintenance - Spare Parts","190502351","05/09/2018","Fleet Services","Fleet Management","R3009"
"Wolverhampton City Council","http://opendatacommunities.org/id/metropolitan-district-council/wolverhampton","705183","Lodge Tyre Co.Limited","PE005442","15.00","Vehicle Maintenance - Spare Parts","190502351","05/09/2018","Fleet Services","Fleet Management","R3009"
"Wolverhampton City Council","http://opendatacommunities.org/id/metropolitan-district-council/wolverhampton","705183","Lodge Tyre Co.Limited","PE005442","15.00","Vehicle Maintenance - Spare Parts","190502351","05/09/2018","Fleet Services","Fleet Management","R3009"
"Wolverhampton City Council","http://opendatacommunities.org/id/metropolitan-district-council/wolverhampton","705183","Lodge Tyre Co.Limited","PE005442","15.00","Vehicle Maintenance - Spare Parts","190502351","05/09/2018","Fleet Services","Fleet Management","R3009"
"Wolverhampton City Council","http://opendatacommunities.org/id/metropolitan-district-council/wolverhampton","705183","Lodge Tyre Co.Limited","PE005442","60.00","Vehicle Maintenance - Spare Parts","190502351","05/09/2018","Fleet Services","Fleet Management","R3009"
"Wolverhampton City Council","http://opendatacommunities.org/id/metropolitan-district-council/wolverhampton","705183","Lodge Tyre Co.Limited","PE005442","60.00","Vehicle Maintenance - Spare Parts","190502351","05/09/2018","Fleet Services","Fleet Management","R3009"
"Wolverhampton City Council","http://opendatacommunities.org/id/metropolitan-district-council/wolverhampton","705183","Lodge Tyre Co.Limited","PE005442","60.00","Vehicle Maintenance - Spare Parts","190502351","05/09/2018","Fleet Services","Fleet Management","R3009"
"Wolverhampton City Council","http://opendatacommunities.org/id/metropolitan-district-council/wolverhampton","705183","Lodge Tyre Co.Limited","PE005442","66.00","Vehicle Maintenance - Spare Parts","190502351","05/09/2018","Fleet Services","Fleet Management","R3009"
"Wolverhampton City Council","http://opendatacommunities.org/id/metropolitan-district-council/wolverhampton","705183","Lodge Tyre Co.Limited","PE005442","15.00","Vehicle Maintenance - Spare Parts","190502351","05/09/2018","Fleet Services","Fleet Management","R3009"
"Wolverhampton City Council","http://opendatacommunities.org/id/metropolitan-district-council/wolverhampton","705183","Lodge Tyre Co.Limited","PE005442","15.00","Vehicle Maintenance - Spare Parts","190502351","05/09/2018","Fleet Services","Fleet Management","R3009"
"Wolverhampton City Council","http://opendatacommunities.org/id/metropolitan-district-council/wolverhampton","705183","Lodge Tyre Co.Limited","PE005442","58.00","Vehicle Maintenance - Spare Parts","190502351","05/09/2018","Fleet Services","Fleet Management","R3009"
"Wolverhampton City Council","http://opendatacommunities.org/id/metropolitan-district-council/wolverhampton","705183","Lodge Tyre Co.Limited","PE005442","10.00","Vehicle Maintenance - Spare Parts","190502351","05/09/2018","Fleet Services","Fleet Management","R3009"
"Wolverhampton City Council","http://opendatacommunities.org/id/metropolitan-district-council/wolverhampton","705183","Lodge Tyre Co.Limited","PE005442","130.00","Vehicle Maintenance - Spare Parts","190502351","05/09/2018","Fleet Services","Fleet Management","R3009"
"Wolverhampton City Council","http://opendatacommunities.org/id/metropolitan-district-council/wolverhampton","705183","Lodge Tyre Co.Limited","PE005442","116.00","Vehicle Maintenance - Spare Parts","190502351","05/09/2018","Fleet Services","Fleet Management","R3009"
"Wolverhampton City Council","http://opendatacommunities.org/id/metropolitan-district-council/wolverhampton","705183","Lodge Tyre Co.Limited","PE005442","30.00","Vehicle Maintenance - Spare Parts","190502351","05/09/2018","Fleet Services","Fleet Management","R3009"
"Wolverhampton City Council","http://opendatacommunities.org/id/metropolitan-district-council/wolverhampton","705183","Lodge Tyre Co.Limited","PE005442","595.70","Vehicle Maintenance - Spare Parts","190502351","05/09/2018","Fleet Services","Fleet Management","R3009"
"Wolverhampton City Council","http://opendatacommunities.org/id/metropolitan-district-council/wolverhampton","705183","Lodge Tyre Co.Limited","PE005442","210.00","Vehicle Maintenance - Spare Parts","190502351","05/09/2018","Fleet Services","Fleet Management","R3009"
"Wolverhampton City Council","http://opendatacommunities.org/id/metropolitan-district-council/wolverhampton","705183","Lodge Tyre Co.Limited","PE005442","390.00","Vehicle Maintenance - Spare Parts","190502351","05/09/2018","Fleet Services","Fleet Management","R3009"
"Wolverhampton City Council","http://opendatacommunities.org/id/metropolitan-district-council/wolverhampton","705183","Lodge Tyre Co.Limited","PE005442","225.00","Vehicle Maintenance - Spare Parts","190502351","05/09/2018","Fleet Services","Fleet Management","R3009"
"Wolverhampton City Council","http://opendatacommunities.org/id/metropolitan-district-council/wolverhampton","705183","Lodge Tyre Co.Limited","PE005442","595.70","Vehicle Maintenance - Spare Parts","190502351","05/09/2018","Fleet Services","Fleet Management","R3009"
"Wolverhampton City Council","http://opendatacommunities.org/id/metropolitan-district-council/wolverhampton","705183","Lodge Tyre Co.Limited","PE005442","390.00","Vehicle Maintenance - Spare Parts","190502351","05/09/2018","Fleet Services","Fleet Management","R3009"
"Wolverhampton City Council","http://opendatacommunities.org/id/metropolitan-district-council/wolverhampton","705183","Lodge Tyre Co.Limited","PE005442","15.00","Vehicle Maintenance - Spare Parts","190502351","05/09/2018","Fleet Services","Fleet Management","R3009"
"Wolverhampton City Council","http://opendatacommunities.org/id/metropolitan-district-council/wolverhampton","705183","Lodge Tyre Co.Limited","PE005442","225.00","Vehicle Maintenance - Spare Parts","190502351","05/09/2018","Fleet Services","Fleet Management","R3009"
"Wolverhampton City Council","http://opendatacommunities.org/id/metropolitan-district-council/wolverhampton","705183","Lodge Tyre Co.Limited","PE005442","390.00","Vehicle Maintenance - Spare Parts","190502351","05/09/2018","Fleet Services","Fleet Management","R3009"
"Wolverhampton City Council","http://opendatacommunities.org/id/metropolitan-district-council/wolverhampton","705183","Lodge Tyre Co.Limited","PE005442","60.00","Vehicle Maintenance - Spare Parts","190502351","05/09/2018","Fleet Services","Fleet Management","R3009"
"Wolverhampton City Council","http://opendatacommunities.org/id/metropolitan-district-council/wolverhampton","705183","Lodge Tyre Co.Limited","PE005442","60.00","Vehicle Maintenance - Spare Parts","190502351","05/09/2018","Fleet Services","Fleet Management","R3009"
"Wolverhampton City Council","http://opendatacommunities.org/id/metropolitan-district-council/wolverhampton","705183","Lodge Tyre Co.Limited","PE005442","30.00","Vehicle Maintenance - Spare Parts","190502351","05/09/2018","Fleet Services","Fleet Management","R3009"
"Wolverhampton City Council","http://opendatacommunities.org/id/metropolitan-district-council/wolverhampton","705183","Lodge Tyre Co.Limited","PE005442","50.00","Vehicle Maintenance - Spare Parts","190502351","05/09/2018","Fleet Services","Fleet Management","R3009"
"Wolverhampton City Council","http://opendatacommunities.org/id/metropolitan-district-council/wolverhampton","705183","Lodge Tyre Co.Limited","PE005442","30.00","Vehicle Maintenance - Spare Parts","190502351","05/09/2018","Fleet Services","Fleet Management","R3009"
"Wolverhampton City Council","http://opendatacommunities.org/id/metropolitan-district-council/wolverhampton","705183","Lodge Tyre Co.Limited","PE005442","390.00","Vehicle Maintenance - Spare Parts","190502351","05/09/2018","Fleet Services","Fleet Management","R3009"
"Wolverhampton City Council","http://opendatacommunities.org/id/metropolitan-district-council/wolverhampton","705183","Lodge Tyre Co.Limited","PE005442","50.00","Vehicle Maintenance - Spare Parts","190502351","05/09/2018","Fleet Services","Fleet Management","R3009"
"Wolverhampton City Council","http://opendatacommunities.org/id/metropolitan-district-council/wolverhampton","705183","Lodge Tyre Co.Limited","PE005442","390.00","Vehicle Maintenance - Spare Parts","190502351","05/09/2018","Fleet Services","Fleet Management","R3009"
"Wolverhampton City Council","http://opendatacommunities.org/id/metropolitan-district-council/wolverhampton","705183","Lodge Tyre Co.Limited","PE005442","390.00","Vehicle Maintenance - Spare Parts","190502351","05/09/2018","Fleet Services","Fleet Management","R3009"
"Wolverhampton City Council","http://opendatacommunities.org/id/metropolitan-district-council/wolverhampton","705183","Lodge Tyre Co.Limited","PE005442","30.00","Vehicle Maintenance - Spare Parts","190502351","05/09/2018","Fleet Services","Fleet Management","R3009"
"Wolverhampton City Council","http://opendatacommunities.org/id/metropolitan-district-council/wolverhampton","705183","Lodge Tyre Co.Limited","PE005442","180.00","Vehicle Maintenance - Spare Parts","190502351","05/09/2018","Fleet Services","Fleet Management","R3009"
"Wolverhampton City Council","http://opendatacommunities.org/id/metropolitan-district-council/wolverhampton","705183","Lodge Tyre Co.Limited","PE005442","120.00","Vehicle Maintenance - Spare Parts","190502351","05/09/2018","Fleet Services","Fleet Management","R3009"
"Wolverhampton City Council","http://opendatacommunities.org/id/metropolitan-district-council/wolverhampton","705183","Lodge Tyre Co.Limited","PE005442","240.00","Vehicle Maintenance - Spare Parts","190502351","05/09/2018","Fleet Services","Fleet Management","R3009"
"Wolverhampton City Council","http://opendatacommunities.org/id/metropolitan-district-council/wolverhampton","705183","Lodge Tyre Co.Limited","PE005442","132.00","Vehicle Maintenance - Spare Parts","190502351","05/09/2018","Fleet Services","Fleet Management","R3009"
"Wolverhampton City Council","http://opendatacommunities.org/id/metropolitan-district-council/wolverhampton","705183","Lodge Tyre Co.Limited","PE005442","18.00","Vehicle Maintenance - Spare Parts","190502351","05/09/2018","Fleet Services","Fleet Management","R3009"
"Wolverhampton City Council","http://opendatacommunities.org/id/metropolitan-district-council/wolverhampton","705183","Lodge Tyre Co.Limited","PE005442","66.00","Vehicle Maintenance - Spare Parts","190502351","05/09/2018","Fleet Services","Fleet Management","R3009"
"Wolverhampton City Council","http://opendatacommunities.org/id/metropolitan-district-council/wolverhampton","705183","Lodge Tyre Co.Limited","PE005442","66.00","Vehicle Maintenance - Spare Parts","190502351","05/09/2018","Fleet Services","Fleet Management","R3009"
"Wolverhampton City Council","http://opendatacommunities.org/id/metropolitan-district-council/wolverhampton","705183","Lodge Tyre Co.Limited","PE005442","120.00","Vehicle Maintenance - Spare Parts","190502351","05/09/2018","Fleet Services","Fleet Management","R3009"
"Wolverhampton City Council","http://opendatacommunities.org/id/metropolitan-district-council/wolverhampton","705183","Lodge Tyre Co.Limited","PE005442","15.00","Vehicle Maintenance - Spare Parts","190502351","05/09/2018","Fleet Services","Fleet Management","R3009"
"Wolverhampton City Council","http://opendatacommunities.org/id/metropolitan-district-council/wolverhampton","705183","Lodge Tyre Co.Limited","PE005442","120.00","Vehicle Maintenance - Spare Parts","190502351","05/09/2018","Fleet Services","Fleet Management","R3009"
"Wolverhampton City Council","http://opendatacommunities.org/id/metropolitan-district-council/wolverhampton","705183","Lodge Tyre Co.Limited","PE005442","60.00","Vehicle Maintenance - Spare Parts","190502351","05/09/2018","Fleet Services","Fleet Management","R3009"
"Wolverhampton City Council","http://opendatacommunities.org/id/metropolitan-district-council/wolverhampton","705183","Lodge Tyre Co.Limited","PE005442","15.00","Vehicle Maintenance - Spare Parts","190502351","05/09/2018","Fleet Services","Fleet Management","R3009"
"Wolverhampton City Council","http://opendatacommunities.org/id/metropolitan-district-council/wolverhampton","705183","Lodge Tyre Co.Limited","PE005442","15.00","Vehicle Maintenance - Spare Parts","190502351","05/09/2018","Fleet Services","Fleet Management","R3009"
"Wolverhampton City Council","http://opendatacommunities.org/id/metropolitan-district-council/wolverhampton","705183","Lodge Tyre Co.Limited","PE005442","66.00","Vehicle Maintenance - Spare Parts","190502351","05/09/2018","Fleet Services","Fleet Management","R3009"
"Wolverhampton City Council","http://opendatacommunities.org/id/metropolitan-district-council/wolverhampton","705183","Lodge Tyre Co.Limited","PE005442","45.00","Vehicle Maintenance - Spare Parts","190502351","05/09/2018","Fleet Services","Fleet Management","R3009"
"Wolverhampton City Council","http://opendatacommunities.org/id/metropolitan-district-council/wolverhampton","705183","Lodge Tyre Co.Limited","PE005442","15.00","Vehicle Maintenance - Spare Parts","190502351","05/09/2018","Fleet Services","Fleet Management","R3009"
"Wolverhampton City Council","http://opendatacommunities.org/id/metropolitan-district-council/wolverhampton","705183","Lodge Tyre Co.Limited","PE005442","3.00","Vehicle Maintenance - Spare Parts","190502351","05/09/2018","Fleet Services","Fleet Management","R3009"
"Wolverhampton City Council","http://opendatacommunities.org/id/metropolitan-district-council/wolverhampton","705183","Lodge Tyre Co.Limited","PE005442","3.00","Vehicle Maintenance - Spare Parts","190502351","05/09/2018","Fleet Services","Fleet Management","R3009"
"Wolverhampton City Council","http://opendatacommunities.org/id/metropolitan-district-council/wolverhampton","705183","Lodge Tyre Co.Limited","PE005442","65.70","Vehicle Maintenance - Spare Parts","190502351","05/09/2018","Fleet Services","Fleet Management","R3009"
"Wolverhampton City Council","http://opendatacommunities.org/id/metropolitan-district-council/wolverhampton","705183","Lodge Tyre Co.Limited","PE005442","3.00","Vehicle Maintenance - Spare Parts","190502351","05/09/2018","Fleet Services","Fleet Management","R3009"
"Wolverhampton City Council","http://opendatacommunities.org/id/metropolitan-district-council/wolverhampton","705183","Lodge Tyre Co.Limited","PE005442","15.00","Vehicle Maintenance - Spare Parts","190502351","05/09/2018","Fleet Services","Fleet Management","R3009"
"Wolverhampton City Council","http://opendatacommunities.org/id/metropolitan-district-council/wolverhampton","705183","Lodge Tyre Co.Limited","PE005442","3.50","Vehicle Maintenance - Spare Parts","190502351","05/09/2018","Fleet Services","Fleet Management","R3009"
"Wolverhampton City Council","http://opendatacommunities.org/id/metropolitan-district-council/wolverhampton","705183","Lodge Tyre Co.Limited","PE005442","157.00","Vehicle Maintenance - Spare Parts","190502351","05/09/2018","Fleet Services","Fleet Management","R3009"
"Wolverhampton City Council","http://opendatacommunities.org/id/metropolitan-district-council/wolverhampton","705183","Lodge Tyre Co.Limited","PE005442","15.00","Vehicle Maintenance - Spare Parts","190502351","05/09/2018","Fleet Services","Fleet Management","R3009"
"Wolverhampton City Council","http://opendatacommunities.org/id/metropolitan-district-council/wolverhampton","705183","Lodge Tyre Co.Limited","15R01117","-63.00","Vehicle Maintenance - Spare Parts","190502323","05/09/2018","Fleet Services","Fleet Management","R3009"
"Wolverhampton City Council","http://opendatacommunities.org/id/metropolitan-district-council/wolverhampton","705183","Lodge Tyre Co.Limited","15R01123","-3.00","Vehicle Maintenance - Spare Parts","190502326","05/09/2018","Fleet Services","Fleet Management","R3009"
"Wolverhampton City Council","http://opendatacommunities.org/id/metropolitan-district-council/wolverhampton","705183","Lodge Tyre Co.Limited","15R01123","-70.00","Vehicle Maintenance - Spare Parts","190502326","05/09/2018","Fleet Services","Fleet Management","R3009"
"Wolverhampton City Council","http://opendatacommunities.org/id/metropolitan-district-council/wolverhampton","705183","Lodge Tyre Co.Limited","15R01118","-390.00","Vehicle Maintenance - Spare Parts","190502324","05/09/2018","Fleet Services","Fleet Management","R3009"
"Wolverhampton City Council","http://opendatacommunities.org/id/metropolitan-district-council/wolverhampton","705183","Lodge Tyre Co.Limited","PE005461","390.00","Vehicle Maintenance - Spare Parts","190508104","19/09/2018","Fleet Services","Fleet Management","R3009"
"Wolverhampton City Council","http://opendatacommunities.org/id/metropolitan-district-council/wolverhampton","705183","Lodge Tyre Co.Limited","PE005461","195.00","Vehicle Maintenance - Spare Parts","190508104","19/09/2018","Fleet Services","Fleet Management","R3009"
"Wolverhampton City Council","http://opendatacommunities.org/id/metropolitan-district-council/wolverhampton","705183","Lodge Tyre Co.Limited","PE005461","195.00","Vehicle Maintenance - Spare Parts","190508104","19/09/2018","Fleet Services","Fleet Management","R3009"
"Wolverhampton City Council","http://opendatacommunities.org/id/metropolitan-district-council/wolverhampton","705183","Lodge Tyre Co.Limited","PE005461","195.00","Vehicle Maintenance - Spare Parts","190508104","19/09/2018","Fleet Services","Fleet Management","R3009"
"Wolverhampton City Council","http://opendatacommunities.org/id/metropolitan-district-council/wolverhampton","705183","Lodge Tyre Co.Limited","PE005461","1,170.00","Vehicle Maintenance - Spare Parts","190508104","19/09/2018","Fleet Services","Fleet Management","R3009"
"Wolverhampton City Council","http://opendatacommunities.org/id/metropolitan-district-council/wolverhampton","705183","Lodge Tyre Co.Limited","PE005461","50.00","Vehicle Maintenance - Spare Parts","190508104","19/09/2018","Fleet Services","Fleet Management","R3009"
"Wolverhampton City Council","http://opendatacommunities.org/id/metropolitan-district-council/wolverhampton","705183","Lodge Tyre Co.Limited","PE005461","195.00","Vehicle Maintenance - Spare Parts","190508104","19/09/2018","Fleet Services","Fleet Management","R3009"
"Wolverhampton City Council","http://opendatacommunities.org/id/metropolitan-district-council/wolverhampton","705183","Lodge Tyre Co.Limited","PE005461","30.00","Vehicle Maintenance - Spare Parts","190508104","19/09/2018","Fleet Services","Fleet Management","R3009"
"Wolverhampton City Council","http://opendatacommunities.org/id/metropolitan-district-council/wolverhampton","705183","Lodge Tyre Co.Limited","PE005461","240.00","Vehicle Maintenance - Spare Parts","190508104","19/09/2018","Fleet Services","Fleet Management","R3009"
"Wolverhampton City Council","http://opendatacommunities.org/id/metropolitan-district-council/wolverhampton","705183","Lodge Tyre Co.Limited","PE005461","30.00","Vehicle Maintenance - Spare Parts","190508104","19/09/2018","Fleet Services","Fleet Management","R3009"
"Wolverhampton City Council","http://opendatacommunities.org/id/metropolitan-district-council/wolverhampton","705183","Lodge Tyre Co.Limited","PE005461","25.00","Vehicle Maintenance - Spare Parts","190508104","19/09/2018","Fleet Services","Fleet Management","R3009"
"Wolverhampton City Council","http://opendatacommunities.org/id/metropolitan-district-council/wolverhampton","705183","Lodge Tyre Co.Limited","PE005461","390.00","Vehicle Maintenance - Spare Parts","190508104","19/09/2018","Fleet Services","Fleet Management","R3009"
"Wolverhampton City Council","http://opendatacommunities.org/id/metropolitan-district-council/wolverhampton","705183","Lodge Tyre Co.Limited","PE005461","365.00","Vehicle Maintenance - Spare Parts","190508104","19/09/2018","Fleet Services","Fleet Management","R3009"
"Wolverhampton City Council","http://opendatacommunities.org/id/metropolitan-district-council/wolverhampton","705183","Lodge Tyre Co.Limited","PE005461","50.00","Vehicle Maintenance - Spare Parts","190508104","19/09/2018","Fleet Services","Fleet Management","R3009"
"Wolverhampton City Council","http://opendatacommunities.org/id/metropolitan-district-council/wolverhampton","705183","Lodge Tyre Co.Limited","PE005461","585.00","Vehicle Maintenance - Spare Parts","190508104","19/09/2018","Fleet Services","Fleet Management","R3009"
"Wolverhampton City Council","http://opendatacommunities.org/id/metropolitan-district-council/wolverhampton","705183","Lodge Tyre Co.Limited","PE005461","240.00","Vehicle Maintenance - Spare Parts","190508104","19/09/2018","Fleet Services","Fleet Management","R3009"
"Wolverhampton City Council","http://opendatacommunities.org/id/metropolitan-district-council/wolverhampton","705183","Lodge Tyre Co.Limited","PE005461","60.00","Vehicle Maintenance - Spare Parts","190508104","19/09/2018","Fleet Services","Fleet Management","R3009"
"Wolverhampton City Council","http://opendatacommunities.org/id/metropolitan-district-council/wolverhampton","705183","Lodge Tyre Co.Limited","PE005461","25.00","Vehicle Maintenance - Spare Parts","190508104","19/09/2018","Fleet Services","Fleet Management","R3009"
"Wolverhampton City Council","http://opendatacommunities.org/id/metropolitan-district-council/wolverhampton","705183","Lodge Tyre Co.Limited","PE005461","50.00","Vehicle Maintenance - Spare Parts","190508104","19/09/2018","Fleet Services","Fleet Management","R3009"
"Wolverhampton City Council","http://opendatacommunities.org/id/metropolitan-district-council/wolverhampton","705183","Lodge Tyre Co.Limited","PE005461","390.00","Vehicle Maintenance - Spare Parts","190508104","19/09/2018","Fleet Services","Fleet Management","R3009"
"Wolverhampton City Council","http://opendatacommunities.org/id/metropolitan-district-council/wolverhampton","705183","Lodge Tyre Co.Limited","PE005461","30.00","Vehicle Maintenance - Spare Parts","190508104","19/09/2018","Fleet Services","Fleet Management","R3009"
"Wolverhampton City Council","http://opendatacommunities.org/id/metropolitan-district-council/wolverhampton","705183","Lodge Tyre Co.Limited","PE005461","390.00","Vehicle Maintenance - Spare Parts","190508104","19/09/2018","Fleet Services","Fleet Management","R3009"
"Wolverhampton City Council","http://opendatacommunities.org/id/metropolitan-district-council/wolverhampton","705183","Lodge Tyre Co.Limited","PE005461","120.00","Vehicle Maintenance - Spare Parts","190508104","19/09/2018","Fleet Services","Fleet Management","R3009"
"Wolverhampton City Council","http://opendatacommunities.org/id/metropolitan-district-council/wolverhampton","705183","Lodge Tyre Co.Limited","PE005461","30.00","Vehicle Maintenance - Spare Parts","190508104","19/09/2018","Fleet Services","Fleet Management","R3009"
"Wolverhampton City Council","http://opendatacommunities.org/id/metropolitan-district-council/wolverhampton","705183","Lodge Tyre Co.Limited","PE005461","75.00","Vehicle Maintenance - Spare Parts","190508104","19/09/2018","Fleet Services","Fleet Management","R3009"
"Wolverhampton City Council","http://opendatacommunities.org/id/metropolitan-district-council/wolverhampton","705183","Lodge Tyre Co.Limited","PE005461","195.00","Vehicle Maintenance - Spare Parts","190508104","19/09/2018","Fleet Services","Fleet Management","R3009"
"Wolverhampton City Council","http://opendatacommunities.org/id/metropolitan-district-council/wolverhampton","705183","Lodge Tyre Co.Limited","PE005461","25.00","Vehicle Maintenance - Spare Parts","190508104","19/09/2018","Fleet Services","Fleet Management","R3009"
"Wolverhampton City Council","http://opendatacommunities.org/id/metropolitan-district-council/wolverhampton","705183","Lodge Tyre Co.Limited","PE005461","240.00","Vehicle Maintenance - Spare Parts","190508104","19/09/2018","Fleet Services","Fleet Management","R3009"
"Wolverhampton City Council","http://opendatacommunities.org/id/metropolitan-district-council/wolverhampton","705183","Lodge Tyre Co.Limited","PE005461","390.00","Vehicle Maintenance - Spare Parts","190508104","19/09/2018","Fleet Services","Fleet Management","R3009"
"Wolverhampton City Council","http://opendatacommunities.org/id/metropolitan-district-council/wolverhampton","705183","Lodge Tyre Co.Limited","PE005461","390.00","Vehicle Maintenance - Spare Parts","190508104","19/09/2018","Fleet Services","Fleet Management","R3009"
"Wolverhampton City Council","http://opendatacommunities.org/id/metropolitan-district-council/wolverhampton","705183","Lodge Tyre Co.Limited","PE005461","25.00","Vehicle Maintenance - Spare Parts","190508104","19/09/2018","Fleet Services","Fleet Management","R3009"
"Wolverhampton City Council","http://opendatacommunities.org/id/metropolitan-district-council/wolverhampton","705183","Lodge Tyre Co.Limited","PE005461","30.00","Vehicle Maintenance - Spare Parts","190508104","19/09/2018","Fleet Services","Fleet Management","R3009"
"Wolverhampton City Council","http://opendatacommunities.org/id/metropolitan-district-council/wolverhampton","705183","Lodge Tyre Co.Limited","PE005461","25.00","Vehicle Maintenance - Spare Parts","190508104","19/09/2018","Fleet Services","Fleet Management","R3009"
"Wolverhampton City Council","http://opendatacommunities.org/id/metropolitan-district-council/wolverhampton","705183","Lodge Tyre Co.Limited","PE005461","195.00","Vehicle Maintenance - Spare Parts","190508104","19/09/2018","Fleet Services","Fleet Management","R3009"
"Wolverhampton City Council","http://opendatacommunities.org/id/metropolitan-district-council/wolverhampton","705183","Lodge Tyre Co.Limited","PE005461","240.00","Vehicle Maintenance - Spare Parts","190508104","19/09/2018","Fleet Services","Fleet Management","R3009"
"Wolverhampton City Council","http://opendatacommunities.org/id/metropolitan-district-council/wolverhampton","705183","Lodge Tyre Co.Limited","PE005461","50.00","Vehicle Maintenance - Spare Parts","190508104","19/09/2018","Fleet Services","Fleet Management","R3009"
"Wolverhampton City Council","http://opendatacommunities.org/id/metropolitan-district-council/wolverhampton","705183","Lodge Tyre Co.Limited","PE005461","195.00","Vehicle Maintenance - Spare Parts","190508104","19/09/2018","Fleet Services","Fleet Management","R3009"
"Wolverhampton City Council","http://opendatacommunities.org/id/metropolitan-district-council/wolverhampton","705183","Lodge Tyre Co.Limited","PE005461","390.00","Vehicle Maintenance - Spare Parts","190508104","19/09/2018","Fleet Services","Fleet Management","R3009"
"Wolverhampton City Council","http://opendatacommunities.org/id/metropolitan-district-council/wolverhampton","705183","Lodge Tyre Co.Limited","PE005461","30.00","Vehicle Maintenance - Spare Parts","190508104","19/09/2018","Fleet Services","Fleet Management","R3009"
"Wolverhampton City Council","http://opendatacommunities.org/id/metropolitan-district-council/wolverhampton","705183","Lodge Tyre Co.Limited","PE005461","50.00","Vehicle Maintenance - Spare Parts","190508104","19/09/2018","Fleet Services","Fleet Management","R3009"
"Wolverhampton City Council","http://opendatacommunities.org/id/metropolitan-district-council/wolverhampton","705183","Lodge Tyre Co.Limited","PE005461","30.00","Vehicle Maintenance - Spare Parts","190508104","19/09/2018","Fleet Services","Fleet Management","R3009"
"Wolverhampton City Council","http://opendatacommunities.org/id/metropolitan-district-council/wolverhampton","705183","Lodge Tyre Co.Limited","15R01126","-45.00","Vehicle Maintenance - Spare Parts","190502327","05/09/2018","Fleet Services","Fleet Management","R3009"
"Wolverhampton City Council","http://opendatacommunities.org/id/metropolitan-district-council/wolverhampton","705223","Lucy Zodion Limited","182614","354.94","Materials","130228136","19/09/2018","Street Lighting","Street Lighting Maintenance","R4007"
"Wolverhampton City Council","http://opendatacommunities.org/id/metropolitan-district-council/wolverhampton","705225","Luscombe Cider Limited","0000158272","155.76","Provisions (Resale)","130227814","12/09/2018","Visitor Economy","Bantock - Tea Rooms","R4102"
"Wolverhampton City Council","http://opendatacommunities.org/id/metropolitan-district-council/wolverhampton","705274","M.K.G. (Food Products) Limited","105524","112.15","Provisions (Resale)","130226282","12/09/2018","Visitor Economy","Art Gallery Tea Room","R4102"
"Wolverhampton City Council","http://opendatacommunities.org/id/metropolitan-district-council/wolverhampton","705274","M.K.G. (Food Products) Limited","104843","147.33","Provisions (Resale)","130226281","07/09/2018","Visitor Economy","Art Gallery Tea Room","R4102"
"Wolverhampton City Council","http://opendatacommunities.org/id/metropolitan-district-council/wolverhampton","705274","M.K.G. (Food Products) Limited","107175","205.63","Provisions (Resale)","130227214","26/09/2018","Visitor Economy","Art Gallery Tea Room","R4102"
"Wolverhampton City Council","http://opendatacommunities.org/id/metropolitan-district-council/wolverhampton","705274","M.K.G. (Food Products) Limited","107607","378.41","Provisions (Resale)","130227215","26/09/2018","Visitor Economy","Bantock - Tea Rooms","R4102"
"Wolverhampton City Council","http://opendatacommunities.org/id/metropolitan-district-council/wolverhampton","705274","M.K.G. (Food Products) Limited","104493","407.22","Provisions (Resale)","130225690","05/09/2018","Visitor Economy","Bantock - Tea Rooms","R4102"
"Wolverhampton City Council","http://opendatacommunities.org/id/metropolitan-district-council/wolverhampton","705274","M.K.G. (Food Products) Limited","103091","197.77","Provisions (Resale)","130228137","12/09/2018","Visitor Economy","Bantock - Tea Rooms","R4102"
"Wolverhampton City Council","http://opendatacommunities.org/id/metropolitan-district-council/wolverhampton","705274","M.K.G. (Food Products) Limited","107610","100.53","Provisions (Resale)","130227216","26/09/2018","Visitor Economy","Art Gallery Tea Room","R4102"
"Wolverhampton City Council","http://opendatacommunities.org/id/metropolitan-district-council/wolverhampton","705274","M.K.G. (Food Products) Limited","178067","-3.27","Provisions (Resale)","130225691","05/09/2018","Visitor Economy","Art Gallery Tea Room","R4102"
"Wolverhampton City Council","http://opendatacommunities.org/id/metropolitan-district-council/wolverhampton","705274","M.K.G. (Food Products) Limited","178280","-14.16","Provisions (Resale)","130227217","26/09/2018","Visitor Economy","Art Gallery Tea Room","R4102"
"Wolverhampton City Council","http://opendatacommunities.org/id/metropolitan-district-council/wolverhampton","705274","M.K.G. (Food Products) Limited","178081","-12.29","Provisions (Resale)","130225692","05/09/2018","Visitor Economy","Bantock - Tea Rooms","R4102"
"Wolverhampton City Council","http://opendatacommunities.org/id/metropolitan-district-council/wolverhampton","705274","M.K.G. (Food Products) Limited","108067","155.97","Provisions (Resale)","130227817","28/09/2018","Visitor Economy","Art Gallery Tea Room","R4102"
"Wolverhampton City Council","http://opendatacommunities.org/id/metropolitan-district-council/wolverhampton","705274","M.K.G. (Food Products) Limited","105146","446.96","Provisions (Resale)","130227815","12/09/2018","Visitor Economy","Bantock - Tea Rooms","R4102"
"Wolverhampton City Council","http://opendatacommunities.org/id/metropolitan-district-council/wolverhampton","705274","M.K.G. (Food Products) Limited","108066","369.88","Provisions (Resale)","130229055","28/09/2018","Visitor Economy","Bantock - Tea Rooms","R4102"
"Wolverhampton City Council","http://opendatacommunities.org/id/metropolitan-district-council/wolverhampton","705274","M.K.G. (Food Products) Limited","106205","427.18","Provisions (Resale)","130227816","19/09/2018","Visitor Economy","Bantock - Tea Rooms","R4102"
"Wolverhampton City Council","http://opendatacommunities.org/id/metropolitan-district-council/wolverhampton","705274","M.K.G. (Food Products) Limited","178323","-20.14","Provisions (Resale)","130227218","26/09/2018","Visitor Economy","Art Gallery Tea Room","R4102"
"Wolverhampton City Council","http://opendatacommunities.org/id/metropolitan-district-council/wolverhampton","705274","M.K.G. (Food Products) Limited","107173","185.38","Provisions (Resale)","130229054","26/09/2018","Visitor Economy","Bantock - Tea Rooms","R4102"
"Wolverhampton City Council","http://opendatacommunities.org/id/metropolitan-district-council/wolverhampton","705274","M.K.G. (Food Products) Limited","104126","287.49","Provisions (Resale)","130225689","05/09/2018","Visitor Economy","Bantock - Tea Rooms","R4102"
"Wolverhampton City Council","http://opendatacommunities.org/id/metropolitan-district-council/wolverhampton","705281","Machine Mart Limited","1022128","54.99","Equipment - Purchase","190504282","12/09/2018","Fleet Services","Fleet Management","R4000"
"Wolverhampton City Council","http://opendatacommunities.org/id/metropolitan-district-council/wolverhampton","705281","Machine Mart Limited","1023268","31.99","Equipment - Purchase","190510483","26/09/2018","Fleet Services","Fleet Management","R4000"
"Wolverhampton City Council","http://opendatacommunities.org/id/metropolitan-district-council/wolverhampton","705303","Mail Solutions UK Limited","370054","178.70","Stationery","130228288","19/09/2018","Revenues & Benefits","Business Improvement District","R4308"
"Wolverhampton City Council","http://opendatacommunities.org/id/metropolitan-district-council/wolverhampton","705309","Majestic Travel","783/18","1,180.00","Education trips, Holidays, Outings & Activities","130228827","19/09/2018","Early Intervention","EIP Locality 8 � Children�s Village","R4970"
"Wolverhampton City Council","http://opendatacommunities.org/id/metropolitan-district-council/wolverhampton","705334","Mansaw Machine Tools Limited","35965","290.00","Service Charges","130228828","26/09/2018","Visitor Economy","Technician","R2205"
"Wolverhampton City Council","http://opendatacommunities.org/id/metropolitan-district-council/wolverhampton","705367","Marstons PLC","98192737","651.40","Provisions (Resale)","130226821","19/09/2018","Visitor Economy","The Little Civic","R4102"
"Wolverhampton City Council","http://opendatacommunities.org/id/metropolitan-district-council/wolverhampton","705404","MBL Seminars Limited","710497CN","-240.00","Training Expenses","130220535","26/09/2018","Public Service Reform","Centralised Training","R1650"
"Wolverhampton City Council","http://opendatacommunities.org/id/metropolitan-district-council/wolverhampton","705404","MBL Seminars Limited","734844","118.80","Services - Professional Fees","130226433","26/09/2018","Human Resources","HR Advice","R4400"
"Wolverhampton City Council","http://opendatacommunities.org/id/metropolitan-district-council/wolverhampton","705404","MBL Seminars Limited","723236","240.00","Training Expenses","130229272","26/09/2018","Public Service Reform","Centralised Training","R1650"
"Wolverhampton City Council","http://opendatacommunities.org/id/metropolitan-district-council/wolverhampton","705453","Mercian Shutters Limited","41042","385.00","R&M - Departmental planned (external)","130229199","26/09/2018","Maintenance Programme","Civic Centre Repairs & Maintenance","R2001"
"Wolverhampton City Council","http://opendatacommunities.org/id/metropolitan-district-council/wolverhampton","705453","Mercian Shutters Limited","41034","170.00","R&M - Departmental planned (internal)","130229058","28/09/2018","Maintenance Programme","Centralised R&M","R2000"
"Wolverhampton City Council","http://opendatacommunities.org/id/metropolitan-district-council/wolverhampton","705486","Michael Page Int Recruitment Limited","6356347","2,450.00","Agency Staff","130226001","12/09/2018","Capital Programme","Capital Programme Team","R1100"
"Wolverhampton City Council","http://opendatacommunities.org/id/metropolitan-district-council/wolverhampton","705486","Michael Page Int Recruitment Limited","6359871","490.00","Agency Staff","130226283","14/09/2018","Capital Programme","Capital Programme Team","R1100"
"Wolverhampton City Council","http://opendatacommunities.org/id/metropolitan-district-council/wolverhampton","705486","Michael Page Int Recruitment Limited","6366117","1,960.00","Agency Staff","130227321","28/09/2018","Capital Programme","Capital Programme Team","R1100"
"Wolverhampton City Council","http://opendatacommunities.org/id/metropolitan-district-council/wolverhampton","705486","Michael Page Int Recruitment Limited","6356840","2,450.00","Agency Staff","130226002","12/09/2018","Capital Programme","Capital Programme Team","R1100"
"Wolverhampton City Council","http://opendatacommunities.org/id/metropolitan-district-council/wolverhampton","705496","Midcounties Co-Operative Funeralcare","080/70074121","1,197.00","Services - Professional Fees","130226959","14/09/2018","Safeguarding","Court of Protection, Funerals and Protection of Property","R4400"
"Wolverhampton City Council","http://opendatacommunities.org/id/metropolitan-district-council/wolverhampton","705496","Midcounties Co-Operative Funeralcare","080/70073762","1,361.00","Services - Professional Fees","130225289","05/09/2018","Safeguarding","Court of Protection, Funerals and Protection of Property","R4400"
"Wolverhampton City Council","http://opendatacommunities.org/id/metropolitan-district-council/wolverhampton","705519","Midland Motascreens Limited","16649","125.00","Services - Professional Fees","190510172","26/09/2018","Fleet Services","Fleet Management","R4400"
"Wolverhampton City Council","http://opendatacommunities.org/id/metropolitan-district-council/wolverhampton","705520","Midland News Association Limited","I7526532","989.40","Marketing \ Non-staff advertising","130226348","12/09/2018","Operation & Maintenance of Existing Network","UTC - Utilities Organisations","R4317"
"Wolverhampton City Council","http://opendatacommunities.org/id/metropolitan-district-council/wolverhampton","705520","Midland News Association Limited","I7527319","890.44","Marketing \ Non-staff advertising","130226352","12/09/2018","Operation & Maintenance of Existing Network","UTC - Utilities Organisations","R4317"
"Wolverhampton City Council","http://opendatacommunities.org/id/metropolitan-district-council/wolverhampton","705520","Midland News Association Limited","I7528074","791.52","Marketing \ Non-staff advertising","130226960","19/09/2018","Operation & Maintenance of Existing Network","UTC - Utilities Organisations","R4317"
"Wolverhampton City Council","http://opendatacommunities.org/id/metropolitan-district-council/wolverhampton","705520","Midland News Association Limited","I7525252","247.34","Marketing \ Non-staff advertising","130226004","05/09/2018","Planning","Planning","R4317"
"Wolverhampton City Council","http://opendatacommunities.org/id/metropolitan-district-council/wolverhampton","705520","Midland News Association Limited","I7528911","150.00","Marketing \ Non-staff advertising","130228685","26/09/2018","School Planning & Resources","Administration","R4317"
"Wolverhampton City Council","http://opendatacommunities.org/id/metropolitan-district-council/wolverhampton","705520","Midland News Association Limited","I7525786","225.81","Marketing \ Non-staff advertising","130226005","07/09/2018","Healthy Life Expectancy","Healthy Life Expectancy","R4317"
"Wolverhampton City Council","http://opendatacommunities.org/id/metropolitan-district-council/wolverhampton","705520","Midland News Association Limited","I7525786","225.81","Marketing \ Non-staff advertising","130226005","07/09/2018","Leisure Services","WV Active Marketing","R4317"
"Wolverhampton City Council","http://opendatacommunities.org/id/metropolitan-district-council/wolverhampton","705520","Midland News Association Limited","I7526136","24.20","Marketing \ Non-staff advertising","130226140","12/09/2018","Healthy Life Expectancy","Healthy Life Expectancy","R4317"
"Wolverhampton City Council","http://opendatacommunities.org/id/metropolitan-district-council/wolverhampton","705520","Midland News Association Limited","I7526136","24.20","Marketing \ Non-staff advertising","130226140","12/09/2018","Leisure Services","WV Active Marketing","R4317"
"Wolverhampton City Council","http://opendatacommunities.org/id/metropolitan-district-council/wolverhampton","705520","Midland News Association Limited","I7527320","395.76","Marketing \ Non-staff advertising","130226353","12/09/2018","Planning","Planning","R4317"
"Wolverhampton City Council","http://opendatacommunities.org/id/metropolitan-district-council/wolverhampton","705520","Midland News Association Limited","I7528447","2,145.60","Marketing \ Non-staff advertising","130226961","19/09/2018","School Planning & Resources","Administration","R4317"
"Wolverhampton City Council","http://opendatacommunities.org/id/metropolitan-district-council/wolverhampton","705520","Midland News Association Limited","I7527318","2,819.80","Marketing \ Non-staff advertising","130226351","12/09/2018","Operation & Maintenance of Existing Network","UTC - Utilities Organisations","R4317"
"Wolverhampton City Council","http://opendatacommunities.org/id/metropolitan-district-council/wolverhampton","705520","Midland News Association Limited","I7526533","1,113.08","Construction and Conversion","130226349","12/09/2018","-","Safety Programme","C1100"
"Wolverhampton City Council","http://opendatacommunities.org/id/metropolitan-district-council/wolverhampton","705520","Midland News Association Limited","I7526756","100.00","Marketing \ Non-staff advertising","130228683","19/09/2018","Corporate Communications","Communications & Marketing - General","R4317"
"Wolverhampton City Council","http://opendatacommunities.org/id/metropolitan-district-council/wolverhampton","705520","Midland News Association Limited","I7439338","96.00","Marketing \ Non-staff advertising","130228829","19/09/2018","Leisure Services","WV Active Marketing","R4317"
"Wolverhampton City Council","http://opendatacommunities.org/id/metropolitan-district-council/wolverhampton","705520","Midland News Association Limited","I7531003","1,187.28","Acquisition of Land and Buildings","130227575","26/09/2018","-","Safety Programme","C1000"
"Wolverhampton City Council","http://opendatacommunities.org/id/metropolitan-district-council/wolverhampton","705520","Midland News Association Limited","I7523934","500.00","Marketing \ Non-staff advertising","130226003","05/09/2018","Adult Education","Service Wide","R4317"
"Wolverhampton City Council","http://opendatacommunities.org/id/metropolitan-district-council/wolverhampton","705520","Midland News Association Limited","I7526531","1,385.16","Construction and Conversion","130226347","12/09/2018","-","GF - Maintenance of Non Highway Structures","C1100"
"Wolverhampton City Council","http://opendatacommunities.org/id/metropolitan-district-council/wolverhampton","705520","Midland News Association Limited","I7526534","1,929.33","Acquisition of Land and Buildings","130226350","12/09/2018","-","Safety Programme","C1000"
"Wolverhampton City Council","http://opendatacommunities.org/id/metropolitan-district-council/wolverhampton","705520","Midland News Association Limited","I7531005","1,113.08","Construction and Conversion","130229673","28/09/2018","-","Safety Programme","C1100"
"Wolverhampton City Council","http://opendatacommunities.org/id/metropolitan-district-council/wolverhampton","705520","Midland News Association Limited","I7528113","550.00","Marketing \ Non-staff advertising","130228684","19/09/2018","Corporate Communications","Communications & Marketing - General","R4317"
"Wolverhampton City Council","http://opendatacommunities.org/id/metropolitan-district-council/wolverhampton","705525","Midland Quarry Products Limited","1980585006","3,105.33","Materials","130226825","19/09/2018","Highways Maintenance","Patching","R4007"
"Wolverhampton City Council","http://opendatacommunities.org/id/metropolitan-district-council/wolverhampton","705525","Midland Quarry Products Limited","1980583490","3,276.19","Materials","130226434","12/09/2018","Highways Maintenance","Patching","R4007"
"Wolverhampton City Council","http://opendatacommunities.org/id/metropolitan-district-council/wolverhampton","705525","Midland Quarry Products Limited","1980587111","359.52","Materials","130227322","26/09/2018","Highways Maintenance","Patching","R4007"
"Wolverhampton City Council","http://opendatacommunities.org/id/metropolitan-district-council/wolverhampton","705525","Midland Quarry Products Limited","1980580546","1,813.25","Materials","130225696","05/09/2018","Highways Maintenance","Patching","R4007"
"Wolverhampton City Council","http://opendatacommunities.org/id/metropolitan-district-council/wolverhampton","705525","Midland Quarry Products Limited","1980582736","40.00","Materials","130226284","12/09/2018","Highways Maintenance","Patching","R4007"
"Wolverhampton City Council","http://opendatacommunities.org/id/metropolitan-district-council/wolverhampton","705525","Midland Quarry Products Limited","1980585738","2,393.55","Materials","130226962","19/09/2018","Highways Maintenance","Patching","R4007"
"Wolverhampton City Council","http://opendatacommunities.org/id/metropolitan-district-council/wolverhampton","705525","Midland Quarry Products Limited","1980582737","1,957.52","Materials","130226285","12/09/2018","Highways Maintenance","Patching","R4007"
"Wolverhampton City Council","http://opendatacommunities.org/id/metropolitan-district-council/wolverhampton","705525","Midland Quarry Products Limited","1980580545","52.00","Materials","130225695","05/09/2018","Highways Maintenance","Patching","R4007"
"Wolverhampton City Council","http://opendatacommunities.org/id/metropolitan-district-council/wolverhampton","705525","Midland Quarry Products Limited","1980588412","767.20","Materials","130227576","26/09/2018","Highways Maintenance","Patching","R4007"
"Wolverhampton City Council","http://opendatacommunities.org/id/metropolitan-district-council/wolverhampton","705525","Midland Quarry Products Limited","1980585005","11.59","Materials","130226824","19/09/2018","Highways Maintenance","Patching","R4007"
"Wolverhampton City Council","http://opendatacommunities.org/id/metropolitan-district-council/wolverhampton","705525","Midland Quarry Products Limited","1980588217","483.01","Materials","130227424","26/09/2018","Highways Maintenance","Patching","R4007"
"Wolverhampton City Council","http://opendatacommunities.org/id/metropolitan-district-council/wolverhampton","705525","Midland Quarry Products Limited","1980581312","2,251.50","Materials","130225928","05/09/2018","Highways Maintenance","Patching","R4007"
"Wolverhampton City Council","http://opendatacommunities.org/id/metropolitan-district-council/wolverhampton","705534","Midlands Truck & Van Limited","83618373","105.00","Services - Professional Fees","190504308","12/09/2018","Fleet Services","Fleet Management","R4400"
"Wolverhampton City Council","http://opendatacommunities.org/id/metropolitan-district-council/wolverhampton","705534","Midlands Truck & Van Limited","88441957","5.67","Equipment - Purchase","190504309","12/09/2018","Fleet Services","Fleet Management","R4000"
"Wolverhampton City Council","http://opendatacommunities.org/id/metropolitan-district-council/wolverhampton","705534","Midlands Truck & Van Limited","83617654","425.00","Services - Professional Fees","190503204","07/09/2018","Fleet Services","Fleet Management","R4400"
"Wolverhampton City Council","http://opendatacommunities.org/id/metropolitan-district-council/wolverhampton","705534","Midlands Truck & Van Limited","83617654","425.00","Services - Professional Fees","190503204","07/09/2018","Fleet Services","Fleet Management","R4400"
"Wolverhampton City Council","http://opendatacommunities.org/id/metropolitan-district-council/wolverhampton","705534","Midlands Truck & Van Limited","83617654","3,314.12","Services - Professional Fees","190503204","07/09/2018","Fleet Services","Fleet Management","R4400"
"Wolverhampton City Council","http://opendatacommunities.org/id/metropolitan-district-council/wolverhampton","705534","Midlands Truck & Van Limited","83617654","110.50","Services - Professional Fees","190503204","07/09/2018","Fleet Services","Fleet Management","R4400"
"Wolverhampton City Council","http://opendatacommunities.org/id/metropolitan-district-council/wolverhampton","705534","Midlands Truck & Van Limited","83618007","150.00","Services - Professional Fees","190502341","05/09/2018","Fleet Services","Fleet Management","R4400"
